Cogmind - Beta 10.2 @@@ ROGUE MODE // 2021.09.13 @ 15:06:26 Player: Finestep Result: Destroyed by B-99 Colossus with Multirail Performance ------------- Evolutions (9) 4500 Regions Visited (33) 6600 Robots Destroyed (481) 2405 Value Destroyed (27190) 27190 Prototype IDs (51) 1020 Alien Tech Used (1) 200 Bonus (20965) 20965 TOTAL SCORE: 62880 Bonus ------- Triggered High Security 500 High Alert Combat Kills 6880 Follower Combat Kills 6191 Entered Garrisons 2000 Used RIF Installer 5000 Network Hubs Disabled 400 Met R17 at Cetus 500 Met Sigix 2000 Friendly Fire -2506 Cogmind --------- Core Integrity 0/1600 Matter 181/300 Energy 99/100 System Corruption 18% Temperature Cool (0) Movement Core (50) Location -1/Command Parts ------- > --- POWER (3) -------- (None) > --- PROPULSION (4) --- (None) > --- UTILITY (15) ----- (None) > --- WEAPON (3) ------- (None) > --- INVENTORY (4) ---- Advanced Target Analyzer High-powered Tractor Beam Potential Cannon Peak State ------------ > --- POWER ------------ Reinforced Antimatter Reactor Reinforced Antimatter Reactor Particle Reactor > --- PROPULSION ------- High-density Centrium Leg Myomer Exoskeleton > --- UTILITY ---------- Experimental Heat Sink High-capacity Storage Unit High-capacity Storage Unit High-capacity Storage Unit Enhanced Optical Array Long-range Terrain Scanner Experimental Terrain Scan Processor Experimental Targeting Computer Advanced Armor Integrity Analyzer Advanced Phase Shifter EM Dispersion Field Advanced Force Field System Mapper Relay Coupler [Grunt] Relay Coupler [Sentry] > --- WEAPON ----------- EMDS Hypervelocity Multirail > --- INVENTORY -------- Biometal Heavy Treads High-density Centrium Leg Advanced Power Amplifier Experimental Cooling System Advanced Energy Well Experimental Energy Well Matter Compressor Advanced Particle Charger Experimental Focal Shield Advanced Force Field Relay Coupler [NC] Relay Coupler [NC] Relay Coupler [Grunt] Relay Coupler [Grunt] Relay Coupler [Hunter] Relay Coupler [Hunter] High-powered Tractor Beam Enhanced Nova Cannon Potential Cannon Heavy Hardcell Cannon Gamma Bomb Array Advanced Remote Datajack [Rating: 200] Favorites ----------- Power Micro Fission Core Engine Heavy Ion Engine Power Core Micro Fission Core Reactor Quantum Reactor Propulsion Armored Wheel Treads Light Treads Leg High-density Centrium Leg Wheel Armored Wheel Utility High-capacity Storage Unit Device Advanced Heat Sink Storage High-capacity Storage Unit Processor Enhanced Optical Array Hackware Relay Coupler [Grunt] Protection Centrium Medium Armor Plating Artifact Stasis Generator Weapon Improved KE Penetrator Energy Gun Heavy Beamcaster Energy Cannon EMDS Ballistic Gun Improved KE Penetrator Ballistic Cannon Gauss Cannon Launcher Advanced EMP Blaster Special Weapon Remote Datajack Slashing Weapon Plasma Sword Special Melee Weapon Improved Datajack Build | -11 -10 -10 -9 -8 -8 -8 -8 -7 -7 -7 -7 -7 -7 -6 -6 -5 -5 -5 -5 -5 -4 -4 -4 -4 -3 -3 -3 -2 -2 -2 -2 -1 -1 ------- Run | Scr Mat Min Mat Mat Gar Mat Gar Fac Was Fac Gar Fac Gar Fac Gar Fac Ext Cet Arc Hub Fac Gar Fac Gar Res Tes Gar Res Gar Qua Gar Acc Com Slots Evolved 18 | . . . 2 2 . . . 2 . . . . . 2 . 2 . . . . 2 . . . 2 . . 2 . . . 2 . Power 2 | . . . . . . . . . . . . . . 1 . . . . . . . . . . 1 . . . . . . . . Propulsion 2 | . . . . 1 . . . 1 . . . . . . . . . . . . . . . . . . . . . . . . . Utility 13 | . . . 2 1 . . . 1 . . . . . 1 . 1 . . . . 2 . . . 1 . . 2 . . . 2 . Weapon 1 | . . . . . . . . . . . . . . . . 1 . . . . . . . . . . . . . . . . . Parts Attached 597 | 6 6 5 20 8 21 6 20 28 9 18 10 14 16 31 28 49 11 24 3 12 10 22 7 16 6 60 8 5 14 21 13 38 32 Power 50 | 1 1 . 1 . 1 . . 1 1 1 . . . 1 3 1 1 6 . 1 2 3 . . 1 6 1 1 6 5 2 1 2 Engine 9 | 1 1 . 1 . 1 . . 1 . 1 . . . . 3 . . . . . . . . . . . . . . . . . . Core 10 | . . . . . . . . . . . . . . . . 1 1 3 . . . 3 . . . 2 . . . . . . . Reactor 31 | . . . . . . . . . 1 . . . . 1 . . . 3 . 1 2 . . . 1 4 1 1 6 5 2 1 2 Propulsion 77 | 2 1 3 3 3 5 . 7 6 2 . 1 2 . 4 10 9 2 3 . . 1 . . 1 . 6 . . . 2 . 3 1 Treads 46 | 1 1 1 3 2 3 . 5 4 2 . 1 2 . 1 6 3 2 3 . . 1 . . 1 . 1 . . . . . 2 1 Leg 15 | . . . . . . . . . . . . . . . 4 4 . . . . . . . . . 4 . . . 2 . 1 . Wheel 16 | 1 . 2 . 1 2 . 2 2 . . . . . 3 . 2 . . . . . . . . . 1 . . . . . . . Hover . | . . . . . . . . . . . . . . . . . . . . . . . . . . . . . . . . . . Flight . | . . . . . . . . . . . . . . . . . . . . . . . . . . . . . . . . . . Utility 230 | 1 3 . 4 5 3 3 7 7 4 10 3 3 8 11 7 10 3 5 3 9 6 15 3 6 3 21 6 3 4 9 10 21 14 Device 92 | . . . . 2 2 . 1 3 1 5 2 . 4 4 2 4 1 3 2 6 2 8 . 1 1 7 4 1 2 5 3 10 6 Storage 15 | 1 3 . 1 . . . . . . 1 . . . . . . . . . . . . . . . 3 . . . . . 1 5 Processor 8 | . . . . 1 . . . . . 1 . . . 1 . . . . . 1 1 . 1 . 1 . . . . . . 1 . Hackware 59 | . . . . . . 2 3 2 . 2 . 2 2 3 5 5 . . . . 1 5 1 3 . 4 2 2 2 1 3 7 2 Protection 55 | . . . 3 2 1 1 3 2 3 1 1 1 2 3 . 1 2 2 1 2 2 2 1 2 1 7 . . . 2 4 2 1 Artifact 1 | . . . . . . . . . . . . . . . . . . . . . . . . . . . . . . 1 . . . Weapon 240 | 2 1 2 12 . 12 3 6 14 2 7 6 9 8 15 8 29 5 10 . 2 1 4 4 9 2 27 1 1 4 5 1 13 15 Energy Gun 23 | . 1 1 3 . 2 . . . . 4 3 2 . . . 3 . . . . . . 1 . . 3 . . . . . . . Energy Cannon 44 | . . . . . . . . 4 . . . 1 . 1 . 3 2 1 . . . 2 3 2 1 12 . . . 3 . 4 5 Ballistic Gun 76 | 2 . 1 7 . 7 2 3 2 . 2 . 2 5 5 4 10 . 7 . 2 . . . 4 . 3 . 1 1 1 . 4 1 Ballistic Cannon 12 | . . . . . . . . 1 2 1 . . . 2 . 1 . 1 . . . . . . . 2 . . . . . . 2 Launcher 20 | . . . 2 . 1 . . 2 . . 1 1 1 . 1 4 1 1 . . . 1 . 1 . . . . . . . . 3 Special Weapon 52 | . . . . . . . 3 5 . . . 2 2 6 3 6 2 . . . 1 1 . 2 . 4 1 . 3 1 1 5 4 Impact Weapon . | . . . . . . . . . . . . . . . . . . . . . . . . . . . . . . . . . . Slashing Weapon 11 | . . . . . 1 . . . . . 2 1 . 1 . 2 . . . . . . . . 1 3 . . . . . . . Piercing Weapon . | . . . . . . . . . . . . . . . . . . . . . . . . . . . . . . . . . . Special Melee Weapon 2 | . . . . . 1 1 . . . . . . . . . . . . . . . . . . . . . . . . . . . Unidentified Prototypes 32 | . 1 . 2 . . . . . . 3 . . . . . . . 3 . 3 . . . . . 17 . . . 3 . . . Parts Lost 74 | . 1 6 4 . 1 . . . . . 2 . . 2 5 8 1 2 . 4 1 5 1 1 . 3 1 . 2 . . 9 15 Power 19 | . . 1 . . . . . . . . . . . . 2 3 . 1 . 1 1 2 . . . 2 1 . 1 . . 1 3 Propulsion 10 | . . 3 2 . . . . . . . . . . 1 . 1 . . . . . . . . . . . . . . . 1 2 Utility 23 | . . . . . 1 . . . . . 2 . . 1 2 2 1 1 . . . . . . . . . . 1 . . 7 5 Weapon 22 | . 1 2 2 . . . . . . . . . . . 1 2 . . . 3 . 3 1 1 . 1 . . . . . . 5 Highest Loss Streak 14 | . 1 4 2 . 1 . . . . . 1 . . 1 4 3 1 2 . 1 1 3 1 1 . 1 1 . 1 . . 3 14 Average Slot Usage (%) 89 | . 97 94 99 97 99 97 99 99 89 92 91 91 91 89 80 92 88 82 88 80 84 88 88 88 86 88 84 85 85 85 83 88 79 Engine 3 | . 14 10 11 9 9 9 9 7 . . 7 7 7 6 7 7 3 . . . . . . . . . . . . . . . . Core 2 | . . . . . . . . . . . . . . . . 2 6 7 . . . 5 10 10 9 5 4 4 . . . . . Reactor 4 | . . . . . . . . . 6 6 . . . 6 3 . . 2 11 10 9 4 . . 1 7 8 8 11 13 13 11 11 Treads 9 | . 27 20 8 27 21 9 23 15 7 7 7 12 23 6 1 6 11 11 11 11 10 10 10 10 9 4 . . . . . 2 7 Leg 2 | . . . . . . . . . . . . . . . 13 5 . . . . . . . . . 4 9 8 8 7 8 7 . Wheel 4 | . 1 7 13 . 5 18 3 15 15 15 15 10 . 12 . 4 5 . . . . . . . . . . . . . . . . Device 7 | . . . . 4 1 3 2 8 7 8 14 10 2 4 3 5 5 1 16 9 5 5 4 1 4 1 7 17 16 15 12 16 15 Storage 18 | . 25 28 33 27 27 27 27 23 23 23 23 23 23 20 20 17 17 17 17 17 15 15 15 15 14 14 14 13 13 13 13 12 11 Processor 7 | . . . . 1 . . . . . . . . . 3 6 5 5 5 5 5 15 15 15 15 14 14 14 13 13 13 13 15 12 Hackware 6 | . . . . . . 6 3 6 . 4 . 3 6 9 6 14 5 5 5 2 4 5 5 14 14 18 10 7 7 8 5 11 9 Protection 6 | . . . 11 10 16 6 11 7 11 8 7 7 12 4 3 1 4 9 . 5 8 8 10 3 4 2 4 4 4 5 7 2 3 Energy Gun 1 | . 7 10 5 . 2 9 . . . 3 14 8 . . . 1 . . . . . . . . . . . . . . . . . Energy Cannon 2 | . . . . . . . . 3 2 . . . . . . 2 3 . . . . 8 9 2 9 6 4 4 4 5 4 5 6 Ballistic Gun 7 | . 20 15 16 18 13 6 16 4 . . . 1 12 9 9 8 11 14 17 13 10 1 . 9 . 1 . 1 . 1 . 1 . Special Weapon 1 | . . . . . . . 1 . 7 4 . 3 1 1 2 1 1 . . . 2 5 5 1 1 2 3 2 3 1 3 1 . Naked Turns 42 | . . . . . . . . . . . . . . . . . . . . . . . . . . . . . . . . . 42 Heaviest Build 242 | 10 75 75 115 118 118 114 118 144 142 146 146 143 143 153 153 149 175 188 163 194 167 166 145 137 149 169 187 190 198 209 222 229 242 Greatest Support 160 | 20 40 40 40 60 60 24 60 24 24 24 70 114 114 70 70 60 28 160 160 160 160 155 155 155 155 155 132 132 132 132 132 132 150 Greatest Overweight (x) 52 | . 1 2 11 1 4 4 4 5 5 6 6 6 1 12 3 5 6 6 52 1 1 1 . . . 1 1 1 1 1 1 3 2 Average Overweight (x) 2 | . . 1 3 1 2 4 1 4 4 5 4 4 1 5 1 4 4 1 21 . . . . . . . 1 1 1 1 1 1 . Largest Inventory Capacity 28 | 6 20 20 28 28 28 28 28 28 28 28 28 28 28 28 28 28 28 28 28 28 28 28 28 28 28 28 28 28 28 28 28 28 28 Average Capacity 27 | 5 14 20 28 28 28 28 28 28 28 28 28 28 28 28 28 28 28 28 28 28 28 28 28 28 28 28 28 28 28 28 28 28 25 Most Carried 28 | 5 17 17 28 28 28 28 28 28 28 28 28 28 28 28 28 28 28 28 28 28 28 28 28 28 28 28 28 28 28 28 28 28 19 Average Carried 26 | 2 11 15 23 27 27 27 27 27 27 27 26 27 27 27 25 27 27 27 28 27 26 27 27 27 26 27 27 26 27 27 27 22 16 Final Capacity 28 | 6 20 20 28 28 28 28 28 28 28 28 28 28 28 28 28 28 28 28 28 28 28 28 28 28 28 28 28 28 28 28 28 28 4 Final Carried 28 | 5 16 13 28 28 28 28 28 27 28 27 28 28 28 28 28 28 27 28 28 28 28 28 28 27 28 28 28 27 28 28 28 18 4 Class Distribution -------------------- 35% | Botlord-Mutant 20% | Bothacker-Mutant 13% | Hauler-Mutant 9% | Botlord-Skirmisher 4% | Bothacker-Skirmisher 3% | Botlord-Tank 3% | Bothacker-Tank Dominant Class ---------------- Mutant | -10/Materials Hauler-Mutant | -10/Mines Hauler-Mutant | -9/Materials Hauler-Mutant | -8/Materials Hauler-Mutant | -8/Garrison Bothacker-Mutant | -8/Materials Bothacker-Mutant | -8/Garrison Bothacker-Mutant | -7/Factory Bothacker-Mutant | -7/Waste Bothacker-Mutant | -7/Factory Hauler-Mutant | -7/Garrison Bothacker-Mutant | -7/Factory Botlord-Mutant | -7/Garrison Bothacker-Mutant | -6/Factory Botlord-Mutant | -6/Garrison Botlord-Mutant | -5/Factory Botlord-Tank | -5/Extension Bothacker-Tank | -5/Cetus Bothacker-Skirmisher | -5/Archives Bothacker-Tank | -5/Hub_04(d) Scavenger-Mutant | -4/Factory Botlord-Mutant | -4/Garrison Botlord-Mutant | -4/Factory Botlord-Gunner | -4/Garrison Botlord-Assassin | -3/Research Botlord-Mutant | -3/Testing Botlord-Mutant | -3/Garrison Botlord-Skirmisher | -2/Research Botlord-Skirmisher | -2/Garrison Botlord-Mutant | -2/Quarantine Botlord-Mutant | -2/Garrison Botlord-Mutant | -1/Access Generator-Mutant | -1/Command Resources | -11 -10 -10 -9 -8 -8 -8 -8 -7 -7 -7 -7 -7 -7 -6 -6 -5 -5 -5 -5 -5 -4 -4 -4 -4 -3 -3 -3 -2 -2 -2 -2 -1 -1 ----------- Run | Scr Mat Min Mat Mat Gar Mat Gar Fac Was Fac Gar Fac Gar Fac Gar Fac Ext Cet Arc Hub Fac Gar Fac Gar Res Tes Gar Res Gar Qua Gar Acc Com Matter Collected 17446 | 284 341 100 459 174 632 84 370 521 240 519 155 210 456 1373 536 1625 338 555 254 966 202 591 50 400 60 919 985 290 765 522 1083 935 452 Remotely 926 | . . . . . . . . . . . . . 382 157 . 240 . . . 144 . . . . . . . . . . . . 3 Salvage Created 26269 | 115 420 120 939 410 864 74 268 430 333 876 674 522 500 1622 438 2970 426 1064 426 2152 260 1203 52 230 . 993 1298 367 1180 760 1621 2006 656 Parts 1120 | 10 27 7 69 19 35 8 14 24 . 41 31 29 23 66 21 125 17 49 28 90 9 44 1 9 . 52 32 11 28 30 48 94 29 Haulers Intercepted 15 | . 1 . 6 2 . . . 1 . 2 . 1 . . . . . . . . . . . . . 1 . . . . . 1 . Recyclers Shooed 19 | . . . 2 1 . . . . . . . . . 11 . 4 . . . . . . . . . 1 . . . . . . . Parts Field Recycled . | . . . . . . . . . . . . . . . . . . . . . . . . . . . . . . . . . . Retrieved Matter . | . . . . . . . . . . . . . . . . . . . . . . . . . . . . . . . . . . Parts Self-Destructed . | . . . . . . . . . . . . . . . . . . . . . . . . . . . . . . . . . . Prevented . | . . . . . . . . . . . . . . . . . . . . . . . . . . . . . . . . . . Kills | -11 -10 -10 -9 -8 -8 -8 -8 -7 -7 -7 -7 -7 -7 -6 -6 -5 -5 -5 -5 -5 -4 -4 -4 -4 -3 -3 -3 -2 -2 -2 -2 -1 -1 ------- Run | Scr Mat Min Mat Mat Gar Mat Gar Fac Was Fac Gar Fac Gar Fac Gar Fac Ext Cet Arc Hub Fac Gar Fac Gar Res Tes Gar Res Gar Qua Gar Acc Com Combat Hostiles Destroyed 367 | . 10 5 19 6 17 1 5 6 . 9 19 4 14 13 10 38 4 15 4 27 4 14 1 3 . 9 17 4 17 9 21 30 12 Melee 1 | . . . . . . . . . . . . . . . . 1 . . . . . . . . . . . . . . . . . Guns 199 | . 10 5 11 6 14 1 5 1 . 4 8 3 14 11 7 17 1 9 4 27 4 4 . 1 . 5 . 2 1 5 . 19 . Cannons 73 | . . . . . . . . 2 . 5 . 1 . 2 . 9 2 . . . . 6 1 . . 3 3 2 9 2 14 6 6 AOE 50 | . . . 8 . 3 . . 3 . . 11 . . . 3 8 . 1 . . . 1 . . . . . . . . 1 5 6 Classes Destroyed 22 | 2 5 2 2 1 2 . . . . 1 . . . . . . . . . . 1 1 1 . . 1 . . 1 . 1 1 . Worker 20 | . . 1 1 . . . . 1 . 2 . . . 5 . 3 . . . 6 . . . . . . . . . . . . 1 Builder 12 | . 1 . 1 . . . . . . . . 3 . . . 4 1 . . . . . . . . . . . . . . 2 . Tunneler 6 | 2 . . . 1 . . . . . 1 . . . . . . . . . 2 . . . . . . . . . . . . . Hauler 15 | . 1 . 6 2 . . . 1 . 2 . 1 . . . . . . . . . . . . . 1 . . . . . 1 . Recycler 27 | 1 . . 1 1 . . . 2 . 4 . 3 . 7 . 3 1 . . 2 . . . . . 1 . . . . . 1 . Mechanic 1 | . . . . . . . . . . . . . . . . . . . . . 1 . . . . . . . . . . . . Operator 5 | . 1 . 1 . . . . . . . . . . . . . 1 . 2 . . . . . . . . . . . . . . Watcher 22 | . . . 4 . . 1 . 3 . 1 . . . 1 . 3 . 2 . 2 . 1 . . . 1 . . . 1 1 1 . Swarmer 95 | . 3 . 12 2 6 . . 3 . . 10 . 8 4 5 8 . 2 . . . 5 . . . . . . 4 . 10 7 6 Saboteur 1 | . . . . . . . . . . . . . . . . . . . . . . . . . . . . . . . . 1 . Grunt 125 | . 7 1 3 3 4 . 3 1 . 4 5 1 4 2 4 19 . 3 . 17 4 6 . 1 . 2 11 2 4 . 2 11 1 Brawler 7 | . . . . . 1 . . . . . . 1 1 1 . 1 . . . . . . . . . 1 . . . . 1 . . Duelist 13 | . . . . . 3 . 1 . . . . . . 1 . . . 2 . 1 . . . . . . 2 . . . 1 1 1 Protector 4 | . . . . . . . . . . . . . . . . . . . . . . . . . . . . . 1 1 . 2 . Sentry 40 | . . . 4 . 3 . 1 1 . 2 . . . 2 . 1 2 . 4 3 . 2 . . . . 2 1 5 . 4 1 2 Demolisher 2 | . . . . . . . . . . . . . . . . . . . . . . . 1 . . . . . 1 . . . . Specialist 4 | . . . . . . . . . . . . . . . . . . . . . . 2 . . . . . . 1 . . 1 . Hunter 33 | . . . . . . . . . . 1 3 2 . 1 . 9 2 . . 1 . . . 2 . . 2 . . 4 4 . 2 Programmer 33 | . . . . 1 . 1 . 1 . 3 1 1 1 2 1 1 . 2 . 3 . . . . . 5 . 2 1 1 . 6 . Behemoth 1 | . . . . . . . . . . . . . . . . . . . . . . . . . . . . . . . 1 . . Cetus Guard 6 | . . . . . . . . . . . . . . . . . . 6 . . . . . . . . . . . . . . . Lightning 5 | . . . . . . . . . . . . . . . . . . . . 2 . . . . . . . . . 3 . . . Alpha 7 1 | . . . . . . . . . . . . . . . . . . . . . . . . . . 1 . . . . . . . Protovariant X 1 | . . . . . . . . . . . . . . . . . . . . . . . . . . 1 . . . . . . . Assembled 4 | . . 4 . . . . . . . . . . . . . . . . . . . . . . . . . . . . . . . Thug 1 | . . . . . . . . . . . . . . . . . . 1 . . . . . . . . . . . . . . . Best Kill Streak 11 | 3 4 3 7 3 5 1 2 3 . 4 11 3 11 11 5 11 2 5 2 7 5 7 1 2 . 4 4 3 3 4 6 6 7 Combat Bots Only 11 | . 4 3 5 2 5 1 2 3 . 3 11 2 11 5 5 7 1 5 2 7 4 7 1 2 . 4 4 3 3 4 5 6 4 Max Kills in Single Turn 4 | 1 1 1 3 2 2 1 1 2 . 1 3 2 1 2 1 4 1 2 2 2 1 2 1 1 . 1 1 1 1 1 2 2 2 Gunslinging 1 | . . . . . . . . . . . . . . . . . . . . 1 . . . . . . . . . . . . . Exploded 3 | . . . 3 . 2 . . 2 . . 3 . . . 1 2 . 1 . . . 1 . . . . . . . . 1 2 2 Melee 1 | . . . . . . . . . . . . . . . . 1 . . . . . . . . . . . . . . . . . Uniques/NPCs Destroyed 1 | . . . . . . . . . . . . . . . . . . 1 . . . . . . . . . . . . . . . Revision 17 (-5/Cetus) Combat | -11 -10 -10 -9 -8 -8 -8 -8 -7 -7 -7 -7 -7 -7 -6 -6 -5 -5 -5 -5 -5 -4 -4 -4 -4 -3 -3 -3 -2 -2 -2 -2 -1 -1 -------- Run | Scr Mat Min Mat Mat Gar Mat Gar Fac Was Fac Gar Fac Gar Fac Gar Fac Ext Cet Arc Hub Fac Gar Fac Gar Res Tes Gar Res Gar Qua Gar Acc Com Damage Taken 27683 | . 523 558 640 251 746 129 421 283 . 706 824 138 850 1109 1175 2651 684 1031 263 2374 403 1008 248 388 26 1266 532 169 380 154 675 2449 4629 Core 3809 | . 96 129 59 10 57 30 57 30 . 71 141 18 90 208 133 388 56 57 56 215 . 34 11 19 . 85 53 24 30 20 28 142 1462 Absorbed by Shields 5909 | . . . . . 56 . . 87 . 253 195 54 193 681 259 . . . . . . 82 159 49 . . 191 174 399 160 709 1101 1107 Reduced by Siege Mode 333 | . . . . . . . . . . . . . 6 35 . . . 53 14 126 . . . . . . . . . . . . 99 Core Remaining (%) 67 | 100 . 10 85 . . . 72 . . . . . 50 . 59 . . . . 22 . . . 94 . . 89 . . . 92 . . Volleys Fired 1756 | 6 47 26 94 24 62 6 35 35 30 73 38 43 50 104 54 146 38 39 15 97 9 94 5 31 1 86 81 26 56 40 84 107 74 Largest 3 | 2 2 2 2 2 2 2 2 2 1 2 2 2 2 2 2 3 3 3 3 3 2 2 2 3 1 2 1 2 1 1 1 2 2 Hottest 320 | 40 60 60 60 46 90 90 46 128 80 162 162 162 56 76 61 135 147 127 105 105 70 179 162 101 113 188 70 120 70 120 70 250 320 Shots Fired 2681 | 12 90 43 183 48 119 12 52 54 30 104 69 58 88 174 92 260 69 80 46 230 18 113 6 46 1 116 81 27 56 40 81 107 76 Gun 1710 | 12 90 43 179 48 117 12 35 8 . 52 63 40 82 129 76 158 35 68 46 230 18 32 . 26 . 39 . 8 2 8 . 51 3 Cannon 604 | . . . . . . . . 30 30 39 . 4 . 28 . 56 24 2 . . . 43 3 1 1 62 62 11 48 20 68 32 40 Launcher 74 | . . . 4 . 2 . . 3 . . 6 2 . . 6 10 . 10 . . . 8 . 8 . . . . . . . . 15 Special 293 | . . . . . . . 17 13 . 13 . 12 6 17 10 36 10 . . . . 30 3 11 . 15 19 8 6 12 13 24 18 Kinetic 1573 | 12 67 34 139 48 108 8 35 25 25 49 . 6 82 155 76 130 35 69 46 230 18 32 . 21 . 40 . 8 2 8 . 51 14 Thermal 323 | . 23 9 40 . . . . 13 5 42 63 34 . . . 5 . . . . . 14 . 5 1 15 . . . 3 . 22 29 Explosive 17 | . . . 4 . 2 . . 3 . . 6 2 . . . . . . . . . . . . . . . . . . . . . Electromagnetic 475 | . . . . . 9 4 . . . . . 4 . 2 6 89 24 11 . . . 37 3 9 . 46 62 11 48 17 68 10 15 Robot Hit Streak 33 | 4 6 8 15 9 22 3 18 9 11 15 11 11 26 32 12 33 13 16 17 32 10 22 17 14 . 21 10 15 16 13 25 17 33 Robot Miss Streak 6 | 2 3 4 6 6 2 2 2 3 2 3 2 3 1 2 3 4 2 5 1 2 1 2 . 1 . 2 3 2 1 2 2 4 2 Penetration Max 2 | . . . . . . . . . . . . . . . . 1 . 1 1 1 . 1 . . . 1 1 . 1 1 1 2 . Secondary Targets 24 | . 2 . 2 . 2 . . . . . . . 4 1 . 4 . 4 . 4 . 1 . . . . . . . . . . . Max Gunslinging Chain 1 | . 1 . 1 . 1 . . . . . . . 1 1 . 1 . 1 . 1 . 1 . . . . . . . . . . . Shots Hit Robots 1829 | 6 51 27 117 31 98 13 34 26 27 69 42 36 64 134 50 178 46 46 34 165 14 78 6 34 . 91 51 24 31 28 45 79 54 Core Hits 894 | 6 23 14 54 15 37 5 10 17 3 28 39 18 21 50 17 94 15 36 19 75 8 32 1 8 . 43 9 14 17 12 27 61 66 Critical Hits 233 | . . . 1 . . . . . 5 2 . . . 1 10 9 . 9 5 35 4 1 . . . 47 11 6 8 12 9 53 5 Critical Kills 73 | . . . . . . . . . 1 2 . . . . 3 1 . 2 3 15 2 . . . . 4 2 3 5 5 2 22 1 Critical Parts Destroyed 117 | . . . 1 . . . . . . . . . . 1 7 8 . 7 . 19 2 1 . . . 20 7 3 2 7 2 27 3 Melee Attacks 79 | . . . . . 39 5 . . . . 5 8 . 2 . 5 . . . . . . . . 8 7 . . . . . . . Impact . | . . . . . . . . . . . . . . . . . . . . . . . . . . . . . . . . . . Slashing 62 | . . . . . 27 . . . . . 5 8 . 2 . 5 . . . . . . . . 8 7 . . . . . . . Piercing . | . . . . . . . . . . . . . . . . . . . . . . . . . . . . . . . . . . Sneak Attacks 20 | . . . . . 12 2 . . . . . 2 . . . 4 . . . . . . . . . . . . . . . . . Combat Hostiles 4 | . . . . . . . . . . . . . . . . 4 . . . . . . . . . . . . . . . . . Follow-up Attacks . | . . . . . . . . . . . . . . . . . . . . . . . . . . . . . . . . . . Damage Inflicted 51676 | 73 543 287 1589 562 2778 136 327 733 775 1661 2066 1178 1165 2696 893 5143 1054 2466 954 4947 398 2174 87 807 . 2134 1948 636 2120 657 2554 3451 2684 Guns 23194 | 73 540 287 1125 562 995 136 327 47 . 856 836 532 1165 2334 653 2036 444 1322 954 4947 398 677 . 409 . 546 . 120 21 81 . 713 58 Cannons 16954 | . . . . . . . . 373 775 805 . 93 . 348 . 1364 610 28 . . . 1011 87 7 . 1511 1948 516 2059 576 2268 1013 1562 Explosions 8624 | . . . 464 . 124 . . 313 . . 818 256 . . 240 1301 . 1116 . . . 486 . 391 . . . . 40 . 286 1725 1064 Melee 2869 | . . . . . 1656 . . . . . 412 282 . . . 442 . . . . . . . . . 77 . . . . . . . Ramming 35 | . 3 . . . 3 . . . . . . 15 . 14 . . . . . . . . . . . . . . . . . . . Kinetic 22851 | 73 463 222 923 562 891 100 327 395 648 950 . 118 1165 2618 653 1630 444 1322 954 4947 398 677 . 338 . 638 . 120 21 81 . 713 460 Thermal 8433 | . 77 65 298 . . . . 25 127 711 836 443 . . . 470 . 122 . . . 395 . 71 . 431 . . 40 . 286 2492 1544 Explosive 1850 | . . . 368 . 124 . . 313 . . 818 227 . . . . . . . . . . . . . . . . . . . . . Electromagnetic 15638 | . . . . . 104 36 . . . . . 93 . 64 240 2601 610 1022 . . . 1102 87 398 . 988 1948 516 2059 576 2268 246 680 Impact . | . . . . . . . . . . . . . . . . . . . . . . . . . . . . . . . . . . Slashing 2869 | . . . . . 1656 . . . . . 412 282 . . . 442 . . . . . . . . . 77 . . . . . . . Piercing . | . . . . . . . . . . . . . . . . . . . . . . . . . . . . . . . . . . Highest Corruption 18 | . . . . . . . . . . 2 2 2 3 5 6 1 1 7 7 6 . 2 2 2 . 1 1 3 3 4 4 8 18 Average Corruption 3 | . . . . . . . . . . 1 2 2 2 1 5 1 1 2 4 4 . 1 2 2 . 1 1 2 3 3 4 6 8 Corruption Purged 7 | . . . . . . . . . . . . . . . . . . . 7 . . . . . . . . . . . . . . Effects 310 | . . . . . . . . . . 4 7 6 8 . 28 3 7 10 26 17 . 25 2 16 . 4 5 3 22 14 31 32 40 Message Errors 72 | . . . . . . . . . . 1 3 1 3 . 4 1 2 4 4 3 . 11 . 5 . 2 3 1 4 1 6 5 8 Matter Fused 45 | . . . . . . . . . . . . . 2 . 4 . . . 5 1 . . . . . . . . 8 5 8 6 6 Heat Flow Errors 28 | . . . . . . . . . . 1 2 1 1 . 3 . . . 2 . . 2 . 2 . . . . 2 2 2 3 5 Energy Discharges 44 | . . . . . . . . . . . . 2 . . 3 . 1 2 4 4 . 5 1 3 . 1 1 . 3 1 3 3 7 Data Loss (minor) 53 | . . . . . . . . . . 1 2 2 2 . 3 1 2 1 6 1 . 7 . 6 . . 1 . 4 4 5 3 2 Data Loss (major) 7 | . . . . . . . . . . . . . . . 3 . . . 1 . . . . . . . . . . . . 3 . Misfires 6 | . . . . . . . . . . . . . . . 2 . . 1 1 1 . . . . . . . . . . . . 1 Misdirections 1 | . . . . . . . . . . . . . . . . . . . . . . . . . . . . . . . . . 1 Targeting Errors 44 | . . . . . . . . . . 1 . . . . 5 . 2 2 3 5 . . 1 . . 1 . 1 1 1 4 8 9 Weapon Failures 10 | . . . . . . . . . . . . . . . 1 1 . . . 2 . . . . . . . 1 . . 3 1 1 Overload Shots 1 | . . . . . . . . . . . . . . . . 1 . . . . . . . . . . . . . . . . . Overflow Damage 1345 | . . . 55 . 108 . . 54 11 . 15 32 . . . 234 37 17 . . . 9 . . . 59 22 2 61 29 62 480 58 Projectiles 635 | . . . . . . . . 16 11 . . 5 . . . 26 37 . . . . 9 . . . 58 22 2 61 29 62 239 58 Explosions 474 | . . . 55 . . . . 38 . . 15 27 . . . 81 . 17 . . . . . . . . . . . . . 241 . Melee 236 | . . . . . 108 . . . . . . . . . . 127 . . . . . . . . . 1 . . . . . . . Knockbacks 11 | . . . . . . . . 1 . 2 . . . 4 . . . . . . . . . . . . . . . . . . 4 Impact . | . . . . . . . . . . . . . . . . . . . . . . . . . . . . . . . . . . Kinetic 11 | . . . . . . . . 1 . 2 . . . 4 . . . . . . . . . . . . . . . . . . 4 Secondary . | . . . . . . . . . . . . . . . . . . . . . . . . . . . . . . . . . . Self-Inflicted Damage 533 | . . . 116 . 32 . . 13 . . 49 21 . . 88 41 . 10 . . . 22 . . . . . . . . 71 38 32 Shots 28 | . . . 2 . 1 . . 1 . . 3 1 . . 4 1 . 1 . . . 1 . . . . . . . . 1 1 11 Rammed 4 | . 1 . . . 1 . . . . . . 1 . 1 . . . . . . . . . . . . . . . . . . . Targets Rammed 4 | . 1 . . . 1 . . . . . . 1 . 1 . . . . . . . . . . . . . . . . . . . Kicked . | . . . . . . . . . . . . . . . . . . . . . . . . . . . . . . . . . . Crushed . | . . . . . . . . . . . . . . . . . . . . . . . . . . . . . . . . . . Highest Temperature 396 | . 105 65 132 2 73 . 28 180 234 324 396 186 223 222 237 221 69 299 147 75 12 304 85 254 74 273 257 6 210 201 257 349 305 Average Temperature 60 | . 21 26 26 2 16 . 11 52 102 52 69 41 45 42 50 49 14 104 86 32 8 96 35 56 44 84 51 3 98 109 112 82 88 Received Heat Transfer 4040 | . 249 81 114 72 172 27 216 58 . 172 78 42 66 186 391 420 81 66 9 795 63 45 23 4 . 120 80 12 32 8 44 91 223 Effects 15 | . . . . . . . . . 1 1 1 . . . . . . 3 . . . 1 . . . 2 1 . 2 . 2 . 1 Energy Bleed 9 | . . . . . . . . . . 1 1 . . . . . . 1 . . . 1 . . . 2 . . . . 2 . 1 Interference 6 | . . . . . . . . . 1 . . . . . . . . 2 . . . . . . . . 1 . 2 . . . . Siege Activations 15 | . . . . . . . . . . . . . 2 4 . . . 1 1 5 . 1 . . . . . . . . . . 1 Total Turns 414 | . . . . . . . . . . . . . 64 138 . . . 45 14 139 . 5 . . . . . . . . . . 9 Longest Duration 61 | . . . . . . . . . . . . . 50 61 . . . 45 14 52 . 5 . . . . . . . . . . 9 Robots Corrupted 48 | . . . . . . . . . . . . . . . . 3 1 5 . . . 5 . 2 . 2 14 . 7 2 7 . . Combat Hostiles 43 | . . . . . . . . . . . . . . . . 3 1 5 . . . 2 . 2 . 1 14 . 7 2 6 . . Parts Fried 118 | . . . . . 2 . . . . . . . . 1 1 17 3 7 . . . 4 . 4 . 6 27 1 20 6 18 . 1 Impact Corruptions . | . . . . . . . . . . . . . . . . . . . . . . . . . . . . . . . . . . Robots Melted 1 | . . . . . . . . . . . . . . . . . . . . . . 1 . . . . . . . . . . . Combat Hostiles 1 | . . . . . . . . . . . . . . . . . . . . . . 1 . . . . . . . . . . . Parts Melted 23 | . . . . . . . . . . 4 1 2 . . 2 . . . . . . 3 1 . . 2 . 1 1 . . 4 2 Heat Transferred 9655 | . 175 150 525 . . . . 50 250 1073 1332 766 . . . 561 . 100 . . . 372 . 91 . 333 . . 25 . 100 2591 1161 Parts Sabotaged . | . . . . . . . . . . . . . . . . . . . . . . . . . . . . . . . . . . Parts Stolen . | . . . . . . . . . . . . . . . . . . . . . . . . . . . . . . . . . . Parts Stripped . | . . . . . . . . . . . . . . . . . . . . . . . . . . . . . . . . . . Power Chain Reactions 13 | . . . . . . . . . . . . 1 . . . 4 . 1 . . . 4 . . . . . . 1 . 1 . 1 Missiles Intercepted 14 | . . . . . . . . . . . . . . . . . . . . . . . . . . . . . . . . . 14 Alert | -11 -10 -10 -9 -8 -8 -8 -8 -7 -7 -7 -7 -7 -7 -6 -6 -5 -5 -5 -5 -5 -4 -4 -4 -4 -3 -3 -3 -2 -2 -2 -2 -1 -1 ------- Run | Scr Mat Min Mat Mat Gar Mat Gar Fac Was Fac Gar Fac Gar Fac Gar Fac Ext Cet Arc Hub Fac Gar Fac Gar Res Tes Gar Res Gar Qua Gar Acc Com Peak Influence 2571 | 15 192 25 322 325 1212 605 557 397 131 250 732 514 697 438 662 974 751 792 390 819 522 1207 1152 1562 901 630 1220 701 1748 1082 1678 2571 1785 Initial 1625 | . 9 16 9 89 128 585 386 291 131 . 125 384 245 365 277 336 471 364 254 . 401 365 633 806 878 393 420 686 424 983 582 1006 1625 Average 636 | 4 118 14 206 175 820 589 441 309 69 112 504 421 483 325 498 491 515 656 133 487 433 941 723 1451 881 323 886 431 1292 693 1216 1750 1057 Maximum Alert Level 5 | . . . 1 1 4 2 2 1 . 1 3 2 2 2 2 3 3 3 1 3 2 4 4 4 3 2 4 3 5 3 5 5 5 Low Security (%) 19 | 100 100 100 38 56 5 . . 2 100 94 14 . . 2 . 11 . . 77 14 . . . . . 37 . . . . . . . Level 1 18 | . . . 61 43 10 . 31 97 . 5 . 43 39 70 34 24 . 3 22 15 . 2 . . . 25 . 52 . 8 . . 3 Level 2 26 | . . . . . 10 100 68 . . . 77 56 60 27 65 45 94 68 . 56 100 10 64 . . 37 19 45 14 55 13 . 31 Level 3 18 | . . . . . 56 . . . . . 7 . . . . 18 5 28 . 13 . 74 30 8 100 . 65 1 13 36 14 14 31 Level 4 12 | . . . . . 17 . . . . . . . . . . . . . . . . 11 5 91 . . 15 . 47 . 59 34 . Level 5 3 | . . . . . . . . . . . . . . . . . . . . . . . . . . . . . 25 . 12 43 33 High Security . | . . . . . . . . . . . . . . . . . . . . . . . . . . . . . . . . 8 . Max Security . | . . . . . . . . . . . . . . . . . . . . . . . . . . . . . . . . . . Squads Dispatched 81 | . 2 . 2 1 . 1 . 2 . 4 . 5 . 6 . 19 2 . . 7 2 . 3 . . 4 . 2 . 5 . 12 2 Investigation 14 | . 1 . . . . . . . . . . 1 . 2 . 2 1 . . 2 1 . 1 . . 1 . . . 2 . . . Extermination 15 | . . . . . . . . 2 . 3 . 1 . 1 . 2 . . . 1 1 . . . . 1 . . . 1 . 1 1 Reinforcement 28 | . 1 . 2 . . . . . . 1 . 2 . 2 . 7 1 . . 3 . . . . . 2 . 1 . 2 . 3 1 Assault 12 | . . . . . . . . . . . . . . 1 . 2 . . . 1 . . 1 . . . . . . . . 7 . Garrison 12 | . . . . 1 . 1 . . . . . 1 . . . 6 . . . . . . 1 . . . . 1 . . . 1 . Intercept . | . . . . . . . . . . . . . . . . . . . . . . . . . . . . . . . . . . Construction Impeded 6 | . . . . . . . . . . . . 1 . 1 . 2 . . . . . . . . . 1 . . . . . 1 . Haulers Reinforced 5 | . . . . . . . . . . . . 1 . . . 2 . . . . . . . . . 1 . . . . . 1 . Stealth | -11 -10 -10 -9 -8 -8 -8 -8 -7 -7 -7 -7 -7 -7 -6 -6 -5 -5 -5 -5 -5 -4 -4 -4 -4 -3 -3 -3 -2 -2 -2 -2 -1 -1 --------- Run | Scr Mat Min Mat Mat Gar Mat Gar Fac Was Fac Gar Fac Gar Fac Gar Fac Ext Cet Arc Hub Fac Gar Fac Gar Res Tes Gar Res Gar Qua Gar Acc Com Distress Signals 18 | . . . . 1 1 1 . 1 . . . . . 2 . 1 1 . . 3 . . 1 1 . 3 . . . 1 . 1 . Communications Jammed 102 | . . . . 6 . . . . . . . . . 4 . 69 . . . . . . . . . 5 . . . 1 . 17 . Distress Signals 100 | . . . . 6 . . . . . . . . . 4 . 68 . . . . . . . . . 5 . . . . . 17 . Times Spotted 789 | . 15 14 39 12 45 4 14 18 . 15 20 14 16 33 19 65 16 24 10 40 4 43 12 21 1 32 31 9 36 13 35 81 38 Peak Tracking Total 13 | . 5 8 6 4 5 2 4 4 . 3 11 4 5 6 6 6 3 6 1 6 4 12 8 4 1 6 4 4 9 4 6 9 13 Tactical Retreats 50 | . 1 . . 2 4 . 1 1 . . 1 . 1 3 1 2 . . . 3 . 2 . 1 . 7 4 1 . . 6 6 3 Traps | -11 -10 -10 -9 -8 -8 -8 -8 -7 -7 -7 -7 -7 -7 -6 -6 -5 -5 -5 -5 -5 -4 -4 -4 -4 -3 -3 -3 -2 -2 -2 -2 -1 -1 ------- Run | Scr Mat Min Mat Mat Gar Mat Gar Fac Was Fac Gar Fac Gar Fac Gar Fac Ext Cet Arc Hub Fac Gar Fac Gar Res Tes Gar Res Gar Qua Gar Acc Com Traps Triggered 66 | . . . 1 . 10 . 2 1 . . 11 1 4 1 3 . . . . . . 7 2 . 1 . 5 . 8 . 6 . 3 Indirectly . | . . . . . . . . . . . . . . . . . . . . . . . . . . . . . . . . . . Trap Hack Attempts . | . . . . . . . . . . . . . . . . . . . . . . . . . . . . . . . . . . Triggered . | . . . . . . . . . . . . . . . . . . . . . . . . . . . . . . . . . . Disarmed . | . . . . . . . . . . . . . . . . . . . . . . . . . . . . . . . . . . Reprogrammed 3 | . . . . . . . . . . . . . . . . . . . . . . . . . . 3 . . . . . . . Reused . | . . . . . . . . . . . . . . . . . . . . . . . . . . . . . . . . . . Traps Extracted . | . . . . . . . . . . . . . . . . . . . . . . . . . . . . . . . . . . Installed . | . . . . . . . . . . . . . . . . . . . . . . . . . . . . . . . . . . Triggered 4 | . . . . . . . . . . . . . . . . . . . . . . . . . . 1 . . . . 3 . . Machines | -11 -10 -10 -9 -8 -8 -8 -8 -7 -7 -7 -7 -7 -7 -6 -6 -5 -5 -5 -5 -5 -4 -4 -4 -4 -3 -3 -3 -2 -2 -2 -2 -1 -1 ---------- Run | Scr Mat Min Mat Mat Gar Mat Gar Fac Was Fac Gar Fac Gar Fac Gar Fac Ext Cet Arc Hub Fac Gar Fac Gar Res Tes Gar Res Gar Qua Gar Acc Com Machines Disabled 96 | . . . 1 . 3 . 2 . . 7 3 2 2 . 2 11 3 3 1 6 . 5 . 2 . 12 5 1 8 4 8 2 3 Max in Single Turn 3 | . . . 1 . 1 . 1 . . 1 1 1 1 . 1 3 1 1 1 2 . 1 . 1 . 1 1 . 1 2 1 1 1 Garrison Access 7 | . . . . . . . . . . . . . . 1 . 3 . . . 1 . . . . . . . . . . . 2 . Garrison Relay 28 | . . . . . 3 . 2 . . . 3 . 2 . 2 . . . . . . 4 . 2 . . 2 . 4 . 4 . . Network Hub 2 | . . . . . . . . . . . . . . . . . . . . 2 . . . . . . . . . . . . . Machines Sabotaged 1 | . . . . . . . . . . . . . . . . . . . . 1 . . . . . . . . . . . . . Garrisons Compromised . | . . . . . . . . . . . . . . . . . . . . . . . . . . . . . . . . . . Overloaded Fab Kills . | . . . . . . . . . . . . . . . . . . . . . . . . . . . . . . . . . . Fab Network Shutdowns 1 | . . . . . . . . . . . . . . . . . . . . . . . . . . 1 . . . . . . . Hacking | -11 -10 -10 -9 -8 -8 -8 -8 -7 -7 -7 -7 -7 -7 -6 -6 -5 -5 -5 -5 -5 -4 -4 -4 -4 -3 -3 -3 -2 -2 -2 -2 -1 -1 --------- Run | Scr Mat Min Mat Mat Gar Mat Gar Fac Was Fac Gar Fac Gar Fac Gar Fac Ext Cet Arc Hub Fac Gar Fac Gar Res Tes Gar Res Gar Qua Gar Acc Com Machines Accessed 75 | . 4 . 4 4 . 1 . 5 . 4 . 5 . 5 . 9 3 1 . 4 2 . 2 . . 7 . 1 . 6 . 6 2 Terminals 47 | . 3 . 4 2 . . . 4 . 1 . 3 . 3 . 5 3 1 . 4 . . 1 . . 3 . . . 5 . 3 2 Fabricators 5 | . . . . . . . . 1 . 1 . . . . . 1 . . . . . . . . . 1 . . . . . 1 . Repair Stations 3 | . . . . . . . . . . 1 . . . . . . . . . . 1 . . . . 1 . . . . . . . Recycling Units 1 | . 1 . . . . . . . . . . . . . . . . . . . . . . . . . . . . . . . . Scanalyzers 3 | . . . . 1 . . . . . . . 1 . . . . . . . . . . . . . 1 . . . . . . . Garrison Access 16 | . . . . 1 . 1 . . . 1 . 1 . 2 . 3 . . . . 1 . 1 . . 1 . 1 . 1 . 2 . Total Hacks 229 | . 8 . 11 19 . 3 . 19 . 9 . 8 . 11 . 18 6 1 . 11 4 . 4 . . 43 . 4 . 28 . 18 4 Successful 111 | . 5 . 2 14 . 3 . 10 . 6 . 5 . 5 . 6 3 1 . 3 4 . 2 . . 18 . 2 . 13 . 8 1 Failed 117 | . 3 . 8 5 . . . 9 . 3 . 3 . 6 . 12 3 . . 8 . . 2 . . 25 . 2 . 15 . 10 3 Catastrophic 21 | . 1 . 1 1 . . . 1 . . . 2 . . . 3 1 . . 1 . . 1 . . 5 . . . 3 . . 1 Database Lockouts 1 | . . . 1 . . . . . . . . . . . . . . . . . . . . . . . . . . . . . . Manual 106 | . 5 . 7 11 . 2 . 7 . 3 . 1 . 1 . 10 2 . . 9 1 . 3 . . 14 . 3 . 22 . 1 4 Terminals 149 | . 7 . 11 13 . . . 11 . 1 . 4 . 8 . 13 6 1 . 11 . . 2 . . 22 . . . 24 . 11 4 Fabricators 26 | . . . . . . . . 8 . 3 . . . . . 2 . . . . . . . . . 9 . . . . . 4 . Repair Stations 8 | . . . . . . . . . . 3 . . . . . . . . . . 2 . . . . 3 . . . . . . . Recycling Units 1 | . 1 . . . . . . . . . . . . . . . . . . . . . . . . . . . . . . . . Scanalyzers 12 | . . . . 2 . . . . . . . 2 . . . . . . . . . . . . . 8 . . . . . . . Garrison Access 33 | . . . . 4 . 3 . . . 2 . 2 . 3 . 3 . . . . 2 . 2 . . 1 . 4 . 4 . 3 . Terminal Hacks 42 | . 2 . 2 5 . . . 4 . . . 1 . 2 . 2 3 1 . . . . . . . 8 . . . 8 . 4 . Part Schematic 4 | . . . 1 . . . . 1 . . . . . . . . 2 . . . . . . . . . . . . . . . . Robot Schematic 1 | . . . . . . . . . . . . . . . . . . . . . . . . . . 1 . . . . . . . Prototype ID Bank 2 | . . . . . . . . . . . . . . . . 1 . . . . . . . . . . . . . 1 . . . Open Door 3 | . . . . . . . . . . . . . . . . . 1 1 . . . . . . . . . . . 1 . . . Branch Access Points 5 | . . . . 1 . . . 1 . . . 1 . . . 1 . . . . . . . . . . . . . . . 1 . Terminal Index 4 | . . . . 1 . . . . . . . . . 1 . . . . . . . . . . . 1 . . . . . 1 . Scanalyzer Index 1 | . . . . . . . . . . . . . . . . . . . . . . . . . . . . . . 1 . . . Unreport Threat 5 | . . . . . . . . . . . . . . . . . . . . . . . . . . 3 . . . 1 . 1 . Locate Traps 6 | . 1 . . . . . . 1 . . . . . 1 . . . . . . . . . . . 1 . . . 1 . 1 . Reprogram Traps 1 | . . . . . . . . . . . . . . . . . . . . . . . . . . 1 . . . . . . . Dispatch Records 1 | . . . . . . . . . . . . . . . . . . . . . . . . . . . . . . 1 . . . Security Status 1 | . . . . 1 . . . . . . . . . . . . . . . . . . . . . . . . . . . . . Recall Reinforcements 1 | . . . . . . . . . . . . . . . . . . . . . . . . . . . . . . 1 . . . Hauler Manifests 2 | . 1 . . . . . . 1 . . . . . . . . . . . . . . . . . . . . . . . . . Registered Components 1 | . . . 1 . . . . . . . . . . . . . . . . . . . . . . . . . . . . . . Registered Prototypes 2 | . . . . 1 . . . . . . . . . . . . . . . . . . . . . . . . . 1 . . . Zone Layout 2 | . . . . 1 . . . . . . . . . . . . . . . . . . . . . 1 . . . . . . . Fabricator Hacks 10 | . . . . . . . . 4 . 2 . . . . . . . . . . . . . . . 2 . . . . . 2 . Load Schematic 5 | . . . . . . . . 2 . 1 . . . . . . . . . . . . . . . 1 . . . . . 1 . Build 5 | . . . . . . . . 2 . 1 . . . . . . . . . . . . . . . 1 . . . . . 1 . Repair Station Hacks 4 | . . . . . . . . . . 1 . . . . . . . . . . 2 . . . . 1 . . . . . . . Scan Component 3 | . . . . . . . . . . 1 . . . . . . . . . . 1 . . . . 1 . . . . . . . Repair 1 | . . . . . . . . . . . . . . . . . . . . . 1 . . . . . . . . . . . . Recycling Unit Hacks . | . . . . . . . . . . . . . . . . . . . . . . . . . . . . . . . . . . Scanalyzer 9 | . . . . 2 . . . . . . . 2 . . . . . . . . . . . . . 5 . . . . . . . Insert Component 5 | . . . . 1 . . . . . . . 1 . . . . . . . . . . . . . 3 . . . . . . . Analyze 4 | . . . . 1 . . . . . . . 1 . . . . . . . . . . . . . 2 . . . . . . . Garrison Access Hacks 16 | . . . . 1 . 1 . . . 1 . 1 . 2 . 3 . . . . 1 . 1 . . 1 . 1 . 1 . 2 . Unlock Access 10 | . . . . 1 . 1 . . . 1 . 1 . 1 . . . . . . 1 . 1 . . 1 . 1 . 1 . . . Seal Access 6 | . . . . . . . . . . . . . . 1 . 3 . . . . . . . . . . . . . . . 2 . Unauthorized Hacks 30 | . 3 . . 6 . 2 . 2 . 2 . 1 . 1 . 1 . . . 3 1 . 1 . . 1 . 1 . 4 . . 1 Terminals 16 | . 2 . . 4 . . . 1 . 1 . . . . . 1 . . . 3 . . . . . 1 . . . 2 . . 1 Track 5 | . 1 . . 1 . . . . . . . . . . . . . . . 1 . . . . . 1 . . . 1 . . . Assimilate 1 | . . . . . . . . . . 1 . . . . . . . . . . . . . . . . . . . . . . . Botnet 5 | . 1 . . 2 . . . 1 . . . . . . . 1 . . . . . . . . . . . . . . . . . Disrupt 1 | . . . . 1 . . . . . . . . . . . . . . . . . . . . . . . . . . . . . Operators 2 | . . . . . . . . . . . . . . . . . . . . . . . . . . . . . . 1 . . 1 Sabotage 2 | . . . . . . . . . . . . . . . . . . . . 2 . . . . . . . . . . . . . Fabricators 1 | . . . . . . . . 1 . . . . . . . . . . . . . . . . . . . . . . . . . Haulers 1 | . . . . . . . . 1 . . . . . . . . . . . . . . . . . . . . . . . . . Repair Stations 1 | . . . . . . . . . . 1 . . . . . . . . . . . . . . . . . . . . . . . Mechanics 1 | . . . . . . . . . . 1 . . . . . . . . . . . . . . . . . . . . . . . Recycling Units 1 | . 1 . . . . . . . . . . . . . . . . . . . . . . . . . . . . . . . . Tunnel 1 | . 1 . . . . . . . . . . . . . . . . . . . . . . . . . . . . . . . . Scanalyzers . | . . . . . . . . . . . . . . . . . . . . . . . . . . . . . . . . . . Garrison Access 11 | . . . . 2 . 2 . . . . . 1 . 1 . . . . . . 1 . 1 . . . . 1 . 2 . . . Restock 2 | . . . . 1 . 1 . . . . . . . . . . . . . . . . . . . . . . . . . . . Reprogram 4 | . . . . 1 . 1 . . . . . . . . . . . . . . . . . . . . . 1 . 1 . . . Eject 5 | . . . . . . . . . . . . 1 . 1 . . . . . . 1 . 1 . . . . . . 1 . . . Data Cores Recovered 1 | . . . . . . . . . . . . . . . . . . . . . . . . . . . . . . 1 . . . Used 1 | . . . . . . . . . . . . . . . . . . . . . . . . . . . . . . 1 . . . Hacking Detections 58 | . 3 . 4 4 . . . 5 . 4 . 4 . 4 . 6 2 . . 3 . . 1 . . 5 . 1 . 5 . 5 2 Full Trace Events 5 | . . . . . . . . . . . . . . 1 . 2 1 . . . . . . . . . . . . 1 . . . Feedback Events . | . . . . . . . . . . . . . . . . . . . . . . . . . . . . . . . . . . Feedback Blocked . | . . . . . . . . . . . . . . . . . . . . . . . . . . . . . . . . . . Robot Schematics Acquired 1 | . . . . . . . . . . . . . . . . . . . . . . . . . . 1 . . . . . . . Robots Built . | . . . . . . . . . . . . . . . . . . . . . . . . . . . . . . . . . . Matter . | . . . . . . . . . . . . . . . . . . . . . . . . . . . . . . . . . . Time . | . . . . . . . . . . . . . . . . . . . . . . . . . . . . . . . . . . Total Robot Build Rating . | . . . . . . . . . . . . . . . . . . . . . . . . . . . . . . . . . . Part Schematics Acquired 8 | . . . 1 1 . . . 1 . . . 1 . . . . 2 . . . . . . . . 2 . . . . . . . Parts Built 6 | . . . . . . . . 4 . 1 . . . . . . . . . . . . . . . 1 . . . . . . . Matter 836 | . . . . . . . . 248 . 102 . . . . . . . . . . . . . . . 384 . . . . . 102 . Time 268 | . . . . . . . . 124 . 25 . . . . . . . . . . . . . . . 102 . . . . . 17 . Total Part Build Rating 17 | . . . . . . . . 8 . 1 . . . . . . . . . . . . . . . 8 . . . . . . . Parts Repaired 1 | . . . . . . . . . . . . . . . . . . . . . 1 . . . . . . . . . . . . Time 108 | . . . . . . . . . . . . . . . . . . . . . 108 . . . . . . . . . . . . Parts Recycled . | . . . . . . . . . . . . . . . . . . . . . . . . . . . . . . . . . . Recycled Matter . | . . . . . . . . . . . . . . . . . . . . . . . . . . . . . . . . . . Retrieved Matter . | . . . . . . . . . . . . . . . . . . . . . . . . . . . . . . . . . . Retrieved Components . | . . . . . . . . . . . . . . . . . . . . . . . . . . . . . . . . . . Parts Scanalyzed 4 | . . . . 1 . . . . . . . 1 . . . . . . . . . . . . . 2 . . . . . . . Part Schematics Acquired 4 | . . . . 1 . . . . . . . 1 . . . . . . . . . . . . . 2 . . . . . . . Parts Damaged . | . . . . . . . . . . . . . . . . . . . . . . . . . . . . . . . . . . Bothacking | -11 -10 -10 -9 -8 -8 -8 -8 -7 -7 -7 -7 -7 -7 -6 -6 -5 -5 -5 -5 -5 -4 -4 -4 -4 -3 -3 -3 -2 -2 -2 -2 -1 -1 ------------ Run | Scr Mat Min Mat Mat Gar Mat Gar Fac Was Fac Gar Fac Gar Fac Gar Fac Ext Cet Arc Hub Fac Gar Fac Gar Res Tes Gar Res Gar Qua Gar Acc Com Used RIF Installer 10 | . . . . . 1 . 1 . . . 1 . 1 . 1 . . . . . . 1 . 1 . . 1 . 1 . 1 . . Coupler Efficiency 2 | . . . . . . . 1 . . . . . . . . . . . . . . . . . . . . . 1 . . . . Command Fork 1 | . . . . . . . . . . . . . . . 1 . . . . . . . . . . . . . . . . . . Signal Jammer 1 | . . . . . . . . . . . 1 . . . . . . . . . . . . . . . . . . . . . . Zone Cloak 2 | . . . . . . . . . . . . . . . . . . . . . . 1 . 1 . . . . . . . . . Watcher Feeds 1 | . . . . . . . . . . . . . . . . . . . . . . . . . . . . . . . 1 . . Structural Interface 1 | . . . . . . . . . . . . . . . . . . . . . . . . . . . 1 . . . . . . Autoassimilate 1 | . . . . . . . . . . . . . 1 . . . . . . . . . . . . . . . . . . . . Robots Hacked 145 | . . . . . . 2 8 6 . 6 . 6 2 9 7 18 3 . . . . 10 2 7 . 14 7 3 7 4 9 10 5 Non-combat 28 | . . . . . . . . 1 . 3 . 4 . 3 . 7 2 . . . . 1 . . . 2 . 1 . 1 . . 3 Combat 117 | . . . . . . 2 8 5 . 3 . 2 2 6 7 11 1 . . . . 9 2 7 . 12 7 2 7 3 9 10 2 Autoassimilated 16 | . . . . . . . . . . . . . . . 1 2 . . . . . . . 4 . 3 . . 3 . 1 1 1 Robot Hacks Applied 166 | . . . . . . 2 9 8 . 8 . 7 3 10 6 21 4 . . . . 12 3 4 . 12 7 7 4 8 8 10 13 parse_system 4 | . . . . . . . . . . 1 . . . . . . . . . . . . . 1 . . 1 1 . . . . . no_distress 1 | . . . . . . . . . . . . . . . . . 1 . . . . . . . . . . . . . . . . generate_echo 1 | . . . . . . . . . . . . . . . . . . . . . . . . . . . . . . . . . 1 find_chute 2 | . . . . . . . . 1 . . . . . 1 . . . . . . . . . . . . . . . . . . . find_fabricator 1 | . . . . . . . . . . . . . . . . 1 . . . . . . . . . . . . . . . . . drop_inventory 7 | . . . . . . . . . . . . 1 . 2 . 2 1 . . . . . . . . 1 . . . . . . . recall_reinforcements 1 | . . . . . . . . . . . . . . . . . . . . . . . . . . 1 . . . . . . . ignore_parts 2 | . . . . . . . . . . . . . . . . 2 . . . . . . . . . . . . . . . . . check_alert 1 | . . . . . . . . . . . . . . . . . 1 . . . . . . . . . . . . . . . . purge_threat 18 | . . . . . . . . . . . . . . . . 3 . . . . . . . . . . . 3 . 4 . . 8 block_reporting 1 | . . . . . . . . . . . . . . . . . . . . . . . . . . . . . . . . . 1 clear_repairs 1 | . . . . . . . . . . 1 . . . . . . . . . . . . . . . . . . . . . . . map_route 2 | . . . . . . . . . . 1 . 1 . . . . . . . . . . . . . . . . . . . . . disable_scanner 1 | . . . . . . . . . . . . . . . . . . . . . . . . . . 1 . . . . . . . locate_prototypes 1 | . . . . . . . . . . . . . . . . . . . . . . . . . . 1 . . . . . . . find_garrison 6 | . . . . . . . . 1 . 1 . 1 . 1 . 1 . . . . . . . . . . . . . . . 1 . show_paths 1 | . . . . . . . . . . . . . 1 . . . . . . . . . . . . . . . . . . . . scatter_targeting 2 | . . . . . . . . . . . . . . . . . . . . . . 1 . . . 1 . . . . . . . spike_heat 3 | . . . . . . . 1 . . . . . . . . . . . . . . 2 . . . . . . . . . . . amplify_resonance 8 | . . . . . . . 1 1 . . . . . 1 1 1 . . . . . . 1 . . 1 . 1 . . . . . reboot_system 7 | . . . . . . . 1 1 . . . . . 1 . 1 . . . . . . . . . . . . . 1 1 1 . go_dormant 1 | . . . . . . . . 1 . . . . . . . . . . . . . . . . . . . . . . . . . overwrite_iff 12 | . . . . . . . . 1 . 1 . . . . . 2 . . . . . 1 2 . . 1 . 1 2 . . 1 . streamctrl_high 4 | . . . . . . . 3 . . . . . . . . . . . . . . 1 . . . . . . . . . . . formatsys_low 12 | . . . . . . . . . . 2 . 2 . . . 3 . . . . . . . . . 1 . 1 . 1 . . 2 formatsys_high 66 | . . . . . . 2 3 2 . 1 . 2 2 4 5 5 1 . . . . 7 . 3 . 4 6 . 2 2 7 7 1 Relay Couplers Released 143 | . . . . 3 11 4 7 . . . 11 4 8 4 8 6 . . . 1 4 16 3 7 . . 7 . 16 4 17 2 . Ejected 17 | . . . . . . . . . . . . 4 . 2 . . . . . . 4 . 3 . . . . . . 4 . . . Machine Destruction 119 | . . . . . 11 . 7 . . . 11 . 8 2 8 6 . . . 1 . 16 . 7 . . 7 . 16 . 17 2 . Programmers 7 | . . . . 3 . 4 . . . . . . . . . . . . . . . . . . . . . . . . . . . Attached 56 | . . . . . . 2 3 2 . 2 . 2 2 3 5 5 . . . . . 5 1 3 . 2 2 2 2 1 3 7 2 Robots Rewired 31 | . . . . . 6 . . . . . . . . . . . 3 . . . . 15 . . . . 6 . . . 1 . . Allies Hacked 7 | . . . . . . . . . . . . . . . . . . . . . . . . 1 . . . . 1 1 . 2 2 Hacks Repelled . | . . . . . . . . . . . . . . . . . . . . . . . . . . . . . . . . . . Allies | -11 -10 -10 -9 -8 -8 -8 -8 -7 -7 -7 -7 -7 -7 -6 -6 -5 -5 -5 -5 -5 -4 -4 -4 -4 -3 -3 -3 -2 -2 -2 -2 -1 -1 -------- Run | Scr Mat Min Mat Mat Gar Mat Gar Fac Was Fac Gar Fac Gar Fac Gar Fac Ext Cet Arc Hub Fac Gar Fac Gar Res Tes Gar Res Gar Qua Gar Acc Com Total Allies 158 | . . . . 1 6 2 6 3 . 5 . 4 2 4 6 14 5 . . . . 27 2 7 . 9 12 4 8 7 9 11 4 Largest Group 16 | . . . . 1 6 2 2 3 1 3 . 2 1 2 5 5 8 7 . . . 16 16 12 6 4 10 12 14 8 7 9 4 Highest-Rated Group 808 | . . . . 15 102 30 32 74 32 42 . 32 21 76 138 152 348 255 . . . 603 628 650 348 254 624 668 808 474 458 707 183 Highest-Rated Ally 222 | . . . . 15 18 15 16 32 32 32 . 19 21 47 32 49 156 50 . . . 115 60 115 115 115 115 64 64 69 69 222 58 Total Orders 55 | . . . . . 2 3 . 2 . 5 . 1 . . . 4 1 6 . 3 . 3 . 4 3 3 3 2 . . . 6 4 STAY 27 | . . . . . 1 2 . 1 . 3 . . . . . . . 4 . . . 2 . 2 2 2 2 1 . . . 3 2 FOLLOW 15 | . . . . . 1 1 . 1 . 2 . . . . . . . 1 . . . 1 . 2 1 . 1 1 . . . 3 . AID 10 | . . . . . . . . . . . . 1 . . . 4 1 1 . . . . . . . 1 . . . . . . 2 EXPLORE 3 | . . . . . . . . . . . . . . . . . . . . 3 . . . . . . . . . . . . . Ally Attacks 1064 | . . . . 2 89 3 10 20 . 10 . 21 5 17 9 87 56 55 . . . 74 74 73 9 63 38 7 94 54 42 132 20 Total Damage 33255 | . . . . 61 1144 53 153 384 . 218 . 253 145 564 207 2141 1705 1428 . . . 1771 1796 2436 362 1973 1864 218 3726 1794 1445 6994 420 Kills 203 | . . . . 1 16 1 1 5 . 2 . 2 . 2 1 18 10 8 . . . 16 12 17 1 15 6 2 15 9 5 32 6 Allies Corrupted 5 | . . . . . . . . . . . . . . . . 1 . 1 . . . 1 . . . . . . . . 1 1 . Allies Melted 1 | . . . . . . . . . . . . . . . . . . . . . . . . . . 1 . . . . . . . Intel | -11 -10 -10 -9 -8 -8 -8 -8 -7 -7 -7 -7 -7 -7 -6 -6 -5 -5 -5 -5 -5 -4 -4 -4 -4 -3 -3 -3 -2 -2 -2 -2 -1 -1 ------- Run | Scr Mat Min Mat Mat Gar Mat Gar Fac Was Fac Gar Fac Gar Fac Gar Fac Ext Cet Arc Hub Fac Gar Fac Gar Res Tes Gar Res Gar Qua Gar Acc Com Robot Analysis Total . | . . . . . . . . . . . . . . . . . . . . . . . . . . . . . . . . . . Derelict Logs Recovered . | . . . . . . . . . . . . . . . . . . . . . . . . . . . . . . . . . . Drone Launches 4 | . . . . . . . . . . . . . . . . . . . . 4 . . . . . . . . . . . . . Drone Recoveries 2 | . . . . . . . . . . . . . . . . . . . . 2 . . . . . . . . . . . . . Exploration | -11 -10 -10 -9 -8 -8 -8 -8 -7 -7 -7 -7 -7 -7 -6 -6 -5 -5 -5 -5 -5 -4 -4 -4 -4 -3 -3 -3 -2 -2 -2 -2 -1 -1 ------------- Run | Scr Mat Min Mat Mat Gar Mat Gar Fac Was Fac Gar Fac Gar Fac Gar Fac Ext Cet Arc Hub Fac Gar Fac Gar Res Tes Gar Res Gar Qua Gar Acc Com Turns Passed 32077 | 81 838 370 1358 446 1569 212 677 1150 759 1037 889 812 569 1354 1084 1569 859 804 1811 745 309 2524 293 1438 410 1610 1023 217 1279 687 1311 1155 828 Spaces Moved 15360 | 51 394 191 672 186 734 110 312 708 454 563 453 410 224 647 389 703 438 361 147 189 143 1252 167 791 228 820 583 112 782 424 794 539 389 Core 151 | 6 . . . . . . . . . . . . . . . . . . 60 . . . . . . . . . . . . . 85 Treads 6186 | 4 340 118 232 186 455 . 237 . . . 54 95 224 10 115 . . 335 87 189 143 1252 167 791 228 345 . . . . . 275 304 Legs 3818 | . . . . . . . . . . . . . . . 274 110 . . . . . . . . . 475 583 112 782 424 794 264 . Wheels 5205 | 41 54 73 440 . 279 110 75 708 454 563 399 315 . 637 . 593 438 26 . . . . . . . . . . . . . . . Hover . | . . . . . . . . . . . . . . . . . . . . . . . . . . . . . . . . . . Flight . | . . . . . . . . . . . . . . . . . . . . . . . . . . . . . . . . . . Fastest Speed 50 | 50 100 110 130 180 130 130 130 130 130 140 140 140 170 140 150 140 140 160 160 160 160 160 160 160 160 120 135 135 135 120 135 135 50 Average Speed 162 | 98 167 153 154 180 160 130 167 137 139 140 144 147 170 144 178 151 149 175 1188 175 171 170 160 160 160 152 135 135 135 134 135 164 143 Slowest Speed 2650 | 160 180 180 200 180 180 130 180 140 140 150 180 265 170 210 210 240 160 180 2650 180 180 180 160 160 160 185 135 135 135 135 135 210 192 Overloaded Moves . | . . . . . . . . . . . . . . . . . . . . . . . . . . . . . . . . . . Propulsion Burnouts . | . . . . . . . . . . . . . . . . . . . . . . . . . . . . . . . . . . Robots Hopped . | . . . . . . . . . . . . . . . . . . . . . . . . . . . . . . . . . . Cave-ins Triggered 1 | . . . . . . . . . . . . . . 1 . . . . . . . . . . . . . . . . . . . Exploration Rate (%) 43 | 5 55 30 59 13 74 10 38 18 96 19 63 9 52 22 51 22 64 86 82 32 4 86 8 75 6 77 71 5 91 23 97 20 14 Regions Visited 33 Branch Regions 8 Pre-discovered Areas 2 | . 1 1 . . . . . . . . . . . . . . . . . . . . . . . . . . . . . . . Known Exits Taken 12 | . . . . 1 . 1 . . . 1 . 1 . 1 . 1 . . . . 1 . 1 . . 1 . 1 . 1 . 1 . Unknown Exits Taken 9 | 1 1 1 1 . . . . . . . . . . . . . 1 1 1 1 . . . . 1 . . . . . . . . Scrap Searched . | . . . . . . . . . . . . . . . . . . . . . . . . . . . . . . . . . . Spaces Dug 109 | . . . 14 . 7 . . 5 . 4 12 5 . 5 . . . . . 10 . 1 . . 8 6 3 . . 2 . 15 12 Terrain Destroyed 441 | . . . 32 . 11 . . 14 1 5 20 15 . 10 . 51 5 33 10 62 7 1 . 3 9 7 3 . 18 3 8 79 34 Melee 18 | . . . . . . . . . . . . 5 . . . . . . . . . . . . 8 5 . . . . . . . Projectile 166 | . . . . . . . . 5 1 5 . . . 10 . 7 5 19 10 62 7 . . 3 1 2 3 . . 3 2 10 11 AOE 257 | . . . 32 . 11 . . 9 . . 20 10 . . . 44 . 14 . . . 1 . . . . . . 18 . 6 69 23 Terrain Rammed . | . . . . . . . . . . . . . . . . . . . . . . . . . . . . . . . . . . Walls Destroyed . | . . . . . . . . . . . . . . . . . . . . . . . . . . . . . . . . . . Machines Disabled . | . . . . . . . . . . . . . . . . . . . . . . . . . . . . . . . . . . Actions | -11 -10 -10 -9 -8 -8 -8 -8 -7 -7 -7 -7 -7 -7 -6 -6 -5 -5 -5 -5 -5 -4 -4 -4 -4 -3 -3 -3 -2 -2 -2 -2 -1 -1 --------- Run | Scr Mat Min Mat Mat Gar Mat Gar Fac Was Fac Gar Fac Gar Fac Gar Fac Ext Cet Arc Hub Fac Gar Fac Gar Res Tes Gar Res Gar Qua Gar Acc Com Total 20045 | 67 485 228 831 250 963 164 419 842 559 713 607 550 321 893 691 992 588 466 179 400 190 1558 189 928 259 1073 755 157 959 512 964 708 585 Wait 1335 | . 14 6 3 24 49 33 36 36 31 41 10 64 19 75 188 44 93 14 10 95 18 87 6 78 13 18 47 13 49 11 28 7 75 Move 15327 | 50 393 190 671 185 733 109 311 708 453 562 452 409 223 645 387 702 437 360 146 188 142 1251 166 790 227 820 582 111 781 423 793 538 389 Hop . | . . . . . . . . . . . . . . . . . . . . . . . . . . . . . . . . . . Pick Up 276 | 5 17 1 28 5 14 3 5 13 13 6 6 5 4 13 11 22 1 6 1 2 8 22 1 4 2 24 5 1 8 2 5 9 4 Fast Attach 156 | 6 2 1 5 . 2 . . 5 7 4 . 2 . 3 9 12 2 16 2 5 1 2 4 5 3 31 1 1 2 7 5 5 6 Attach 134 | . 1 4 7 2 6 1 4 3 1 2 3 3 1 7 9 11 1 1 . 3 7 7 1 4 1 11 3 2 3 . 2 12 11 Detach 16 | . . . 2 . . . . . . . . . . . 2 . 1 1 . 1 . . . 2 . 2 . . . . . . 5 Swap 307 | . 3 . 8 6 13 5 16 20 1 12 7 9 15 21 10 26 8 7 1 4 2 13 2 7 2 18 4 2 9 14 6 21 15 Drop 346 | . 7 . 13 4 14 2 8 22 23 13 2 6 3 13 9 24 7 22 4 5 3 18 4 7 2 56 2 1 11 15 11 9 6 Fire 1756 | 6 47 26 94 24 62 6 35 35 30 73 38 43 50 104 54 146 38 39 15 97 9 94 5 31 1 86 81 26 56 40 84 107 74 Melee 79 | . . . . . 39 5 . . . . 5 8 . 2 . 5 . . . . . . . . 8 7 . . . . . . . Ram . | . . . . . . . . . . . . . . . . . . . . . . . . . . . . . . . . . . Kick . | . . . . . . . . . . . . . . . . . . . . . . . . . . . . . . . . . . Crush 4 | . 1 . . . 1 . . . . . . 1 . 1 . . . . . . . . . . . . . . . . . . . Escape Stasis 235 | . . . . . 30 . 4 . . . 84 . 6 9 12 . . . . . . 10 . . . . 15 . 40 . 25 . . Rewire 74 | . . . . . . . . . . . . . . . . . . . . . . 54 . . . . 15 . . . 5 . . Trap . | . . . . . . . . . . . . . . . . . . . . . . . . . . . . . . . . . . Miscellaneous . | . . . . . . . . . . . . . . . . . . . . . . . . . . . . . . . . . . Route ------- -11/Scrapyard -10/Materials (discovered 2 exits: [*Min x2]) -10/Mines -9/Materials (discovered 3 exits: *Mat / [*Min x2]) -8/Materials (discovered 2 exits: Sto / Gar) -8/Garrison (discovered 2 exits: *Mat x2) -8/Materials -8/Garrison -7/Factory (discovered 3 exits: *Fac / *Low x2) -7/Waste -7/Factory (discovered 2 exits: *Fac / Gar) -7/Garrison (discovered 2 exits: *Fac x2) -7/Factory (discovered 3 exits: Low x2 / Gar) -7/Garrison -6/Factory (discovered 2 exits: *Fac / Gar) -6/Garrison -5/Factory (discovered 4 exits: Upp x2 / *Ext x2) -5/Extension (discovered 2 exits: *Fac / *Cet) -5/Cetus (discovered 2 exits: *Fac / [*Arc]) -5/Archives (discovered 3 exits: *Fac / *Hub x2) -5/Hub_04(d) (discovered 4 exits: *Fac x4) -4/Factory -4/Garrison (discovered 3 exits: *Fac x3) -4/Factory -4/Garrison (discovered 3 exits: [*Res x3]) -3/Research -3/Testing (discovered 2 exits: *Res / Gar) -3/Garrison (discovered 3 exits: *Res x3) -2/Research -2/Garrison (discovered 3 exits: *Qua x3) -2/Quarantine -2/Garrison (discovered 3 exits: *Acc x3) -1/Access -1/Command History --------- Turn | Location | Event 18 | -11/Scrapyard | Discovered new exit (range 16) 82 | -11/Scrapyard | Entered Materials 109 | -10/Materials | Discovered new exit (range 16) 304 | -10/Materials | Build established: Mutant 540 | -10/Materials | Discovered new exit (range 7) 905 | -10/Materials | Build established: Hauler-Mutant 920 | -10/Materials | Entered Mines 924 | -10/Mines | Discovered new exit (range 7) 962 | -10/Mines | YI-UF0 nonchalantly dropped a Grenade Launcher on the ground 1101 | -10/Mines | Assembled infested the area 1129 | -10/Mines | Core integrity fell below 50% 1240 | -10/Mines | Lost 4 parts (1p2n1w) 1290 | -10/Mines | Core integrity fell below 20% 1290 | -10/Mines | Entered Materials 1290 | -9/Materials | Evolved 2 slots: Utility x2 1547 | -9/Materials | Discovered new exit (range 11) 1698 | -9/Materials | Discovered new exit (range 15) 2220 | -9/Materials | Discovered new exit (range 16) 2303 | -9/Materials | Central database locked down 2648 | -9/Materials | Entered another Materials area 2648 | -8/Materials | Evolved 2 slots: Propulsion x1, Utility x1 2698 | -8/Materials | Identified exit to Storage 2978 | -8/Materials | Identified exit to Garrison 3038 | -8/Materials | Garrison activated, responded to threat 3094 | -8/Materials | Entered Garrison 3144 | -8/Garrison | Triggered checkpoint 3336 | -8/Garrison | Triggered checkpoint 3362 | -8/Garrison | Triggered checkpoint 3466 | -8/Garrison | Triggered checkpoint 3556 | -8/Garrison | Discovered new exit (range 12) 3742 | -8/Garrison | Discovered new exit (range 8) 3765 | -8/Garrison | Installed Relay Interface Framework 3796 | -8/Garrison | Triggered checkpoint 3832 | -8/Garrison | Garrison Relay disabled 4096 | -8/Garrison | Garrison Relay disabled 4354 | -8/Garrison | Triggered checkpoint 4358 | -8/Garrison | Triggered checkpoint 4380 | -8/Garrison | Build established: Bothacker-Mutant 4430 | -8/Garrison | Garrison Relay disabled 4663 | -8/Garrison | Entered Materials 4719 | -8/Materials | Garrison activated, responded to threat 4792 | -8/Materials | Identified exit to Garrison 4875 | -8/Materials | Entered Garrison 4933 | -8/Garrison | Triggered checkpoint 4995 | -8/Garrison | Triggered checkpoint 5021 | -8/Garrison | Garrison Relay disabled 5214 | -8/Garrison | Triggered checkpoint 5307 | -8/Garrison | Discovered new exit (range 8) 5330 | -8/Garrison | Expanded RIF knowledge: Coupler Efficiency 5394 | -8/Garrison | Triggered checkpoint 5437 | -8/Garrison | Garrison Relay disabled 5552 | -8/Garrison | Entered Factory 5552 | -7/Factory | Accompanied by 1 ally 5552 | -7/Factory | Evolved 2 slots: Propulsion x1, Utility x1 5750 | -7/Factory | Discovered new exit (range 3) 5992 | -7/Factory | Discovered new exit (range 8) 6234 | -7/Factory | Fabricated Arm. Wheel (x2) 6305 | -7/Factory | Fabricated Arm. Wheel? 6444 | -7/Factory | Identified exit to Lower Caves 6702 | -7/Factory | Sucked down chute 6702 | -7/Factory | Entered Waste 6702 | -7/Waste | The area was eerily silent 6755 | -7/Waste | 1 allies followed down the chute 6793 | -7/Waste | Found Hvy. Insulated Plating 6924 | -7/Waste | Found Damper Plating 7119 | -7/Waste | Discovered new exit (range 15) 7244 | -7/Waste | Found Prototype Processor 7461 | -7/Waste | Entered Factory 7461 | -7/Factory | Accompanied by 1 ally 7627 | -7/Factory | Fabricated Hcp. Storage Unit (x1) 7841 | -7/Factory | Discovered new exit (range 12) 8376 | -7/Factory | Identified Exp. Terrain Scan Processor 8489 | -7/Factory | Build established: Hauler-Mutant 8492 | -7/Factory | Identified exit to Garrison 8498 | -7/Factory | Entered Garrison 8500 | -7/Garrison | Triggered checkpoint 8652 | -7/Garrison | Destroyed 11 combat bots 8661 | -7/Garrison | Triggered checkpoint 8692 | -7/Garrison | Triggered checkpoint 8766 | -7/Garrison | Triggered checkpoint 8806 | -7/Garrison | Discovered new exit (range 15) 8836 | -7/Garrison | Expanded RIF knowledge: Signal Jamming 8909 | -7/Garrison | Garrison Relay disabled 9002 | -7/Garrison | Garrison Relay disabled 9053 | -7/Garrison | Triggered checkpoint 9243 | -7/Garrison | Discovered new exit (range 9) 9282 | -7/Garrison | Triggered checkpoint 9317 | -7/Garrison | Garrison Relay disabled 9368 | -7/Garrison | Build established: Bothacker-Mutant 9387 | -7/Garrison | Entered Factory 10139 | -7/Factory | Identified exit to Garrison 10189 | -7/Factory | Garrison activated, responded to threat 10199 | -7/Factory | Entered Garrison 10208 | -7/Garrison | Expanded RIF knowledge: Autoassimilate 10260 | -7/Garrison | Triggered checkpoint 10298 | -7/Garrison | Garrison Relay disabled 10371 | -7/Garrison | Triggered checkpoint 10517 | -7/Garrison | Destroyed 11 combat bots 10581 | -7/Garrison | Discovered new exit (range 15) 10603 | -7/Garrison | Build established: Botlord-Mutant 10629 | -7/Garrison | Triggered checkpoint 10703 | -7/Garrison | Garrison Relay disabled 10768 | -7/Garrison | Entered Factory 10768 | -6/Factory | Accompanied by 1 ally 10768 | -6/Factory | Evolved 2 slots: Power x1, Utility x1 10896 | -6/Factory | Discovered new exit (range 7) 11118 | -6/Factory | First assault squad dispatched 11492 | -6/Factory | Found Exp. Terrain Scan Processor 11514 | -6/Factory | Build established: Bothacker-Mutant 11800 | -6/Factory | Spotted B-75 Beast 12110 | -6/Factory | Crushed by falling debris 12114 | -6/Factory | Identified exit to Garrison 12122 | -6/Factory | Entered Garrison 12132 | -6/Garrison | Expanded RIF knowledge: Command Fork 12242 | -6/Garrison | Triggered checkpoint 12396 | -6/Garrison | Garrison Relay disabled 12425 | -6/Garrison | Build established: Botlord-Mutant 12751 | -6/Garrison | Lost 4 parts (2p1u1w) 12771 | -6/Garrison | Discovered new exit (range 10) 12792 | -6/Garrison | Triggered checkpoint 12817 | -6/Garrison | Garrison Relay disabled 12914 | -6/Garrison | Triggered checkpoint 13206 | -6/Garrison | Entered Factory 13206 | -5/Factory | Accompanied by 4 allies 13206 | -5/Factory | Evolved 2 slots: Utility x1, Weapon x1 13315 | -5/Factory | Garrison activated, responded to threat 13847 | -5/Factory | Garrison activated, responded to threat 13860 | -5/Factory | Build established: Botlord-Skirmisher 14032 | -5/Factory | Lost 3 parts (1p1u1w) 14042 | -5/Factory | Destroyed 7 combat bots 14106 | -5/Factory | First assault squad dispatched 14646 | -5/Factory | Identified exit to Upper Caves 14646 | -5/Factory | Identified exit to Extension 14775 | -5/Factory | Entered Extension 14775 | -5/Extension | Accompanied by 4 allies 14910 | -5/Extension | Rescued A7 15060 | -5/Extension | Spotted B-75 Beast 15078 | -5/Extension | Allies destroyed B-75 Beast 15079 | -5/Extension | Spotted B-75 Beast 15108 | -5/Extension | Allies destroyed B-75 Beast 15109 | -5/Extension | Extracted ID and sensor layout for unrecognized location from A7's data core 15290 | -5/Extension | Build established: Botlord-Tank 15596 | -5/Extension | Discovered new exit (range 10) 15597 | -5/Extension | Discovered new exit (range 6) 15610 | -5/Extension | Disrupted transfer network 15634 | -5/Extension | Entered Cetus 15634 | -5/Cetus | Accompanied by 7 allies 15652 | -5/Cetus | Spotted Cetus Guard 15652 | -5/Cetus | Spotted Cetus Guard 15652 | -5/Cetus | Spotted Cetus Guard 15652 | -5/Cetus | Spotted Cetus Guard 15662 | -5/Cetus | Destroyed Cetus Guard 15663 | -5/Cetus | Destroyed Cetus Guard 15664 | -5/Cetus | Destroyed Cetus Guard 15665 | -5/Cetus | Allies destroyed Cetus Guard 15910 | -5/Cetus | Discovered new exit (range 21) 15955 | -5/Cetus | Spotted Cetus Guard 15955 | -5/Cetus | Spotted Cetus Guard 15955 | -5/Cetus | Spotted Cetus Guard 15955 | -5/Cetus | Spotted Cetus Guard 15967 | -5/Cetus | Destroyed Cetus Guard 15970 | -5/Cetus | Destroyed Cetus Guard 15972 | -5/Cetus | Allies destroyed Cetus Guard 15973 | -5/Cetus | Destroyed Cetus Guard 15975 | -5/Cetus | Discovered new exit (range 22) 16003 | -5/Cetus | Met Revision 17 16007 | -5/Cetus | Destroyed Revision 17 16274 | -5/Cetus | Core integrity fell below 50% 16375 | -5/Cetus | Build established: Bothacker-Tank 16438 | -5/Cetus | Entered Archives 16532 | -5/Archives | Discovered new exit (range 22) 16836 | -5/Archives | Build established: Bothacker-Skirmisher 17194 | -5/Archives | Discovered new exit (range 17) 18192 | -5/Archives | Discovered new exit (range 22) 18249 | -5/Archives | Entered Hub_04(d) 18251 | -5/Hub_04(d) | Discovered new exit (range 16) 18287 | -5/Hub_04(d) | Discovered new exit (range 13) 18416 | -5/Hub_04(d) | Build established: Bothacker-Tank 18528 | -5/Hub_04(d) | Discovered new exit (range 22) 18560 | -5/Hub_04(d) | Discovered new exit (range 19) 18567 | -5/Hub_04(d) | Network Hub disabled 18567 | -5/Hub_04(d) | Network Hub disabled 18638 | -5/Hub_04(d) | Destroyed 7 combat bots 18655 | -5/Hub_04(d) | Spotted Lightning 18656 | -5/Hub_04(d) | Spotted Lightning 18674 | -5/Hub_04(d) | Spotted Lightning 18695 | -5/Hub_04(d) | Destroyed Lightning 18767 | -5/Hub_04(d) | Destroyed Lightning 18785 | -5/Hub_04(d) | Found Prototype Energy Cannon 18862 | -5/Hub_04(d) | Found Prototype Device 18862 | -5/Hub_04(d) | Identified EM Dispersion Field 18895 | -5/Hub_04(d) | Found Prototype Processor 18895 | -5/Hub_04(d) | Identified Exp. Targeting Computer 18994 | -5/Hub_04(d) | Entered Factory 18994 | -4/Factory | Evolved 2 slots: Utility x2 19134 | -4/Factory | Repaired Centrium Medium Armor Plating 19281 | -4/Factory | Identified exit to Garrison 19303 | -4/Factory | Entered Garrison 19327 | -4/Garrison | Triggered checkpoint 19483 | -4/Garrison | Garrison Relay disabled 19597 | -4/Garrison | Spotted B-86 Titan 19598 | -4/Garrison | Build established: Botlord-Mutant 19601 | -4/Garrison | Assimilated Titan 7a with formatsys_high 19640 | -4/Garrison | Triggered checkpoint 19650 | -4/Garrison | Triggered checkpoint 19651 | -4/Garrison | Triggered checkpoint 19656 | -4/Garrison | Lost 3 parts (3w) 19691 | -4/Garrison | Destroyed 7 combat bots 19963 | -4/Garrison | Discovered new exit (range 8) 19984 | -4/Garrison | Expanded RIF knowledge: Zone Cloak 20032 | -4/Garrison | Triggered checkpoint 20040 | -4/Garrison | Garrison Relay disabled 20254 | -4/Garrison | Discovered new exit (range 8) 20300 | -4/Garrison | Triggered checkpoint 20331 | -4/Garrison | Garrison Relay disabled 20547 | -4/Garrison | Discovered new exit (range 9) 20812 | -4/Garrison | Triggered checkpoint 20858 | -4/Garrison | Garrison Relay disabled 21827 | -4/Garrison | Entered Factory 21827 | -4/Factory | Accompanied by 16 allies 22077 | -4/Factory | First assault squad dispatched 22083 | -4/Factory | Garrison activated, responded to threat 22103 | -4/Factory | Identified exit to Garrison 22120 | -4/Factory | Entered Garrison 22120 | -4/Garrison | Accompanied by 9 allies 22134 | -4/Garrison | Triggered checkpoint 22188 | -4/Garrison | Spotted B-86 Titan 22190 | -4/Garrison | Autoassimilated Titan 7b with RIF 22196 | -4/Garrison | Triggered checkpoint 22210 | -4/Garrison | Triggered checkpoint 22214 | -4/Garrison | Triggered checkpoint 22216 | -4/Garrison | Triggered checkpoint 22270 | -4/Garrison | P-70 Sage assimilated allied Sentinel 7b 22556 | -4/Garrison | Triggered checkpoint 22560 | -4/Garrison | Garrison Relay disabled 22613 | -4/Garrison | Build established: Botlord-Gunner 22696 | -4/Garrison | Triggered checkpoint 22728 | -4/Garrison | Garrison Relay disabled 22766 | -4/Garrison | Discovered new exit (range 19) 22806 | -4/Garrison | Expanded RIF knowledge: Zone Cloak 23126 | -4/Garrison | Discovered new exit (range 18) 23170 | -4/Garrison | Build established: Botlord-Skirmisher 23355 | -4/Garrison | Discovered new exit (range 8) 23554 | -4/Garrison | Build established: Botlord-Mutant 23558 | -4/Garrison | Entered Research 23558 | -3/Research | Accompanied by 6 allies 23558 | -3/Research | Evolved 2 slots: Power x1, Utility x1 23733 | -3/Research | Discovered new exit (range 24) 23959 | -3/Research | Build established: Botlord-Assassin 23968 | -3/Research | Entered Testing 23968 | -3/Testing | Accompanied by 4 allies 24075 | -3/Testing | Found Prototype Hackware 24075 | -3/Testing | Identified Ghost Barrier 24080 | -3/Testing | Identified EMDS 24161 | -3/Testing | Found Prototype Ballistic Gun 24161 | -3/Testing | Identified Hyp. Multirail 24226 | -3/Testing | Found Prototype Energy Gun 24226 | -3/Testing | Identified Hyp. EM Gauss Rifle 24278 | -3/Testing | Found Prototype Hackware 24278 | -3/Testing | Identified System Mapper 24416 | -3/Testing | Spotted PX-G8N943E001 24432 | -3/Testing | Destroyed PX-G8N943E001 24488 | -3/Testing | Build established: Botlord-Mutant 24516 | -3/Testing | Found Gamma Bomb Array 24533 | -3/Testing | Spotted Striker 24616 | -3/Testing | Found Prototype Energy Gun 24616 | -3/Testing | Identified Warp Gun 24715 | -3/Testing | Found Prototype Leg 24715 | -3/Testing | Identified Myomer Exoskeleton 24803 | -3/Testing | Spotted Alpha 7 25046 | -3/Testing | Found Prototype Device 25052 | -3/Testing | Identified Exp. Focal Shield 25058 | -3/Testing | Found Prototype Device 25065 | -3/Testing | Identified Exp. Shield Generator 25231 | -3/Testing | Destroyed Alpha 7 25248 | -3/Testing | Found Prototype Device 25248 | -3/Testing | Identified Exp. ECM Suite 25333 | -3/Testing | Discovered new exit (range 13) 25368 | -3/Testing | Local fabrication network quarantined 25388 | -3/Testing | Fabricated Exp. Shield Generator? 25501 | -3/Testing | Found Prototype Energy Cannon 25501 | -3/Testing | Identified Potential Cannon 25578 | -3/Testing | Identified exit to Garrison 25578 | -3/Testing | Entered Garrison 25738 | -3/Garrison | Spotted B-86 Titan 25740 | -3/Garrison | Assimilated Titan 8a with formatsys_high 25766 | -3/Garrison | Triggered checkpoint 25791 | -3/Garrison | Triggered checkpoint 25904 | -3/Garrison | Discovered new exit (range 17) 26057 | -3/Garrison | Expanded RIF knowledge: Structural Interface 26171 | -3/Garrison | Garrison Relay disabled 26353 | -3/Garrison | Discovered new exit (range 20) 26485 | -3/Garrison | Discovered new exit (range 23) 26506 | -3/Garrison | Triggered checkpoint 26528 | -3/Garrison | Garrison Relay disabled 26601 | -3/Garrison | Entered Research 26601 | -2/Research | Accompanied by 10 allies 26601 | -2/Research | Evolved 2 slots: Utility x2 26704 | -2/Research | Identified exit to Garrison 26818 | -2/Research | Entered Garrison 26818 | -2/Garrison | Accompanied by 11 allies 26878 | -2/Garrison | Triggered checkpoint 26901 | -2/Garrison | Garrison Relay disabled 26963 | -2/Garrison | Discovered new exit (range 22) 26984 | -2/Garrison | Triggered checkpoint 26987 | -2/Garrison | Triggered checkpoint 27085 | -2/Garrison | Triggered checkpoint 27089 | -2/Garrison | Triggered checkpoint 27148 | -2/Garrison | Build established: Botlord-Skirmisher 27152 | -2/Garrison | Discovered new exit (range 23) 27165 | -2/Garrison | Triggered checkpoint 27225 | -2/Garrison | Garrison Relay disabled 27330 | -2/Garrison | Discovered new exit (range 20) 27486 | -2/Garrison | Expanded RIF knowledge: Coupler Efficiency 27574 | -2/Garrison | Garrison Relay disabled 27781 | -2/Garrison | Triggered checkpoint 27802 | -2/Garrison | Garrison Relay disabled 28097 | -2/Garrison | Entered Quarantine 28097 | -2/Quarantine | Accompanied by 4 allies 28145 | -2/Quarantine | Found Alien Artifact 28145 | -2/Quarantine | Identified Stasis Generator 28514 | -2/Quarantine | Met incapacitated Sigix Warrior 28514 | -2/Quarantine | Lockdown squad dispatched 28555 | -2/Quarantine | Spotted Lightning 28557 | -2/Quarantine | Spotted Lightning 28558 | -2/Quarantine | Destroyed Lightning 28560 | -2/Quarantine | Spotted Lightning 28566 | -2/Quarantine | Destroyed Lightning 28568 | -2/Quarantine | Destroyed Lightning 28588 | -2/Quarantine | Found EMDS 28596 | -2/Quarantine | Found EM Dispersion Field 28675 | -2/Quarantine | Identified exit to Garrison 28784 | -2/Quarantine | Entered Garrison 28784 | -2/Garrison | Accompanied by 5 allies 28863 | -2/Garrison | Triggered checkpoint 28873 | -2/Garrison | Garrison Relay disabled 28955 | -2/Garrison | Spotted B-90 Cyclops 28971 | -2/Garrison | Triggered checkpoint 29070 | -2/Garrison | Build established: Botlord-Mutant 29085 | -2/Garrison | Destroyed B-90 Cyclops 29102 | -2/Garrison | Triggered checkpoint 29117 | -2/Garrison | Triggered checkpoint 29210 | -2/Garrison | Discovered new exit (range 13) 29358 | -2/Garrison | Discovered new exit (range 21) 29378 | -2/Garrison | Triggered checkpoint 29517 | -2/Garrison | Garrison Relay disabled 29620 | -2/Garrison | Triggered checkpoint 29685 | -2/Garrison | Garrison Relay disabled 29714 | -2/Garrison | Discovered new exit (range 13) 29737 | -2/Garrison | Expanded RIF knowledge: Patrol Navigation 29876 | -2/Garrison | Triggered checkpoint 29899 | -2/Garrison | Garrison Relay disabled 29934 | -2/Garrison | Triggered checkpoint 30095 | -2/Garrison | Entered Access 30095 | -1/Access | Accompanied by 7 allies 30095 | -1/Access | Evolved 2 slots: Utility x2 30254 | -1/Access | Spotted B-99 Colossus 30257 | -1/Access | Assimilated Colossus 10a with formatsys_high 30320 | -1/Access | Identified exit to Command 30345 | -1/Access | First assault squad dispatched 30385 | -1/Access | Garrison activated, responded to threat 30523 | -1/Access | Lost 3 parts (1n2u) 31046 | -1/Access | Spotted B-99 Colossus 31153 | -1/Access | High security lockdown imminent 31218 | -1/Access | Spotted B-99 Colossus 31230 | -1/Access | Spotted B-99 Colossus 31233 | -1/Access | High security lockdown engaged 31250 | -1/Access | Entered Command 31578 | -1/Command | Build established: Generator-Mutant 31900 | -1/Command | Spotted M Guard 31900 | -1/Command | Spotted M Guard 31900 | -1/Command | Spotted Combat Programmer 31966 | -1/Command | Spotted Combat Programmer 32002 | -1/Command | System corruption reached 10% 32036 | -1/Command | Released all parts (10) 32040 | -1/Command | Core integrity fell below 50% 32049 | -1/Command | Combat Programmer assimilated allied Enforcer 10d 32066 | -1/Command | Lost 14 parts (3p2n5u4w) 32071 | -1/Command | Spotted Alpha 7 32071 | -1/Command | Spotted Striker 32071 | -1/Command | Spotted Executioner 32071 | -1/Command | Spotted Executioner 32071 | -1/Command | Spotted Alpha 7 32071 | -1/Command | Spotted Striker 32071 | -1/Command | Spotted Executioner 32071 | -1/Command | Spotted Executioner 32071 | -1/Command | Spotted B-99 Colossus 32073 | -1/Command | Spotted B-99 Colossus 32074 | -1/Command | Core integrity fell below 20% 32078 | -1/Command | Destroyed by B-99 Colossus with Multirail Last Messages --------------- 32053_ RIF reveals location of hidden door. 32055_ Director 10a reports 0b10 security level has lowered to 2. 32057_ RIF reveals location of hidden door. 32063_ System corrupted: Matter fused (-6). 32071_ Knocked back. 32072_ Penetrated by Slug. 32072_ Slug penetrates Door. 32072_ Slug penetrates Wall. 32072_ Penetrated by Slug. 32072_ Slug penetrates Wall. 32073_ Penetrated by Slug. 32073_ Slug penetrates Wall. 32073_ Penetrated by Slug. 32073_ Slug penetrates Wall. 32074_ Knocked back. 32075_ Slug penetrates Executioner. 32077_ Penetrated by EMDS Slug. 32077_ Penetrated by Slug. 32078_ Slug penetrates Striker. 32078_ Penetrated by Slug. Map ----- +----------------------------------------------------+ | #?# #????????????????????????????????????? | | #?# #????????????????????????????????????? | | " #?# #????????????????????????????????????? | | "" #?# #????????????????????????????????????? | | "" #####+#########??????????????????????????????? | | + #??????????????????????????????? | | # #??????????????????????????????? | | # #??????????????????????????????? | | ##### ! * #??????????????????????????????? | | ????# #??????????????????????????????? | | ????# "" "" #??????????????????????????????? | | ????# ""R"" [ #??????????????????????????????? | | ????# """" #??????????????????????????????? | | ????###########+###??????????????????????????????? | | ??????????????# #????????????????????????????????? | | ??????????????# #????????????????????????????????? | | ??????????????# #????????????????????????????????? | | ??????????????# #????????????????????????????????? | | ??????????????# #????????????????????????????????? | | ????????????###+####?????????????????????????????? | | ????????????# #?????????????????????????????? | | ????????????# #?????????????????????????????? | | ????????????# #?????????????????????????????? | | ????????????# #?##??????????????????????????? | | ????????????# ###;###########???????????????? | | ????????????# # @ k +?????????? | | ????????????# p #;#########??????????????? | | ????????????+ # ; #??????????????? | | ????????????# # ; #??????????????? | | ????????????# # ; """"???????????????? | | ????????????# " ; """"???????????????? | | ????????????# " ; """"???????????????? | | ????????????# " ; """"???????????????? | | ????????????# # # #??????????????? | | ????????????######## # +??????????????? | | ???????????????????# 7###########??????????????? | | ??????????????????#"////#????????????????????????? | | ??????????????????#7 K #???????????????????????? | | ??????????????????#^ #???????????????????????? | | ?????????????????# ^ #??????????????????????? | | ?????????????????## ##??????????????????????? | | ?????????????????? ???????????????????????? | | ?????????????????## ##??????????????????????? | | ?????????????????? ???????????????????????? | | ??????????????????# ##??????????????????????? | | ?????????????????? ???????????????????????? | | ??????????????????# #???????????????????????? | | ?????????????????? ???????????????????????? | | ?????????????????? ???????????????????????? | | ?????????????????? ???????????????????????? | +----------------------------------------------------+ Best States ------------- Heat Dissipation 116 Energy Generation 80 Energy Capacity 2350 Matter Stores 300 Matter Capacity 550 Sight Range 22 Terrain Scan Range 24 Terrain Scan Density 1010 ECM Strength 5 Jamming Range 8 Power Amplification 30 EM Shielding 2 Armor Coverage 2400 Resistance: KI 30 Resistance: EM 90 Weapon Shielding 66 Point Defense Rating 160 Phase Shifting 15 Evasion (%) 55 Targeting Accuracy 12 Armor Integrity Analysis 66 Recoil Reduction 4 Particle Charging 25 Offensive Hacking 34 Defensive Hacking 20 Relay Coupler Types 100 Relay Coupler Value 3 Item Schematics ----------------- Hcp. Storage Unit | -9/Materials | Hacked Arm. Wheel | -8/Materials | Scanalyzed Adv. Terrain Scan Processor | -7/Factory | Hacked Hpw. Tractor Beam | -7/Factory | Scanalyzed Adv. Heavy Treads | -5/Extension | Hacked Centrium Wheel | -5/Extension | Hacked Exp. Focal Shield | -3/Testing | Scanalyzed Exp. Shield Generator | -3/Testing | Scanalyzed Robot Schematics ------------------ H-77 Assassin | -3/Testing | Hacked Fabricated ------------ Arm. Wheel | x2 | -7/Factory Arm. Wheel | x2 | -7/Factory Hcp. Storage Unit | x1 | -7/Factory Exp. Shield Generator | x1 | -3/Testing Alien Tech Used ----------------- Stasis Generator Achievements -------------- None Challenges ------------ None Game ------ Seed CorruptionUtilityRegulator Manual? 0 Play Time 04:54:10 Cumulative 630.6 hours Start 2021.09.13 @ 08:46:17 End 2021.09.13 @ 15:06:26 Sessions 11 Manual Loads 0 Difficulty Rogue Special Mode None Game No. 372 Rogue 372 Adventurer 0 Explorer 0 Win Type - Total 7 Types 4/0/1/1/1/0/0/0/0 Lore% 89 Gallery% 91 Achievement% 71 Wizard Run 0 Options --------- ASCII 0 Keyboard 0 Movement Mouse Keybinds 1 Fullscreen 2 Font 24/Smallcaps Map View 76x50 Tactical HUD 1 Map Filters NONE Filters NONE Steam 1 RUN: 4427b916-9afd-4672-91d2-1b9f7c909176